Cogmind - Beta 16 @@@ ROGUE MODE // 2025.10.24 @ 18:34:00 Player: Dosh Result: Escaped! Performance ------------- Evolutions (9) 4500 Regions Visited (37) 7400 Robots Destroyed (278) 1390 Value Destroyed (8076) 8076 Prototype IDs (76) 1520 Alien Tech Used (1) 200 Bonus (8047) 8047 TOTAL SCORE: 31133 Bonus ------- High Alert Combat Kills 395 Follower Combat Kills 424 Entered Garrisons 200 Network Hubs Disabled 400 Aligned with FarCom 300 Met Imprinter 300 Acquired ECA 300 Met Zhirov 300 Met Warlord at Base 500 MAIN.C Attacked Warlord 500 Met Warlord at Research 2000 Win 3000 Friendly Fire -572 Cogmind --------- Core Integrity 1555/1600 Matter 211/300 Energy 576/580 System Corruption 0% Temperature Warm (101) Movement Flying (85) Ox1 Location To Epsilon Eridani Parts ------- > --- POWER (2) -------- Graviton Reactor Graviton Reactor > --- PROPULSION (9) --- Cooled Nuclear Pulse Thruster Cooled Nuclear Pulse Thruster Cooled Nuclear Pulse Thruster Cooled Nuclear Pulse Thruster Cooled Nuclear Pulse Thruster Improved Diametric Drive Improved Diametric Drive Impulse Thruster Array > --- UTILITY (12) ----- Experimental Terrain Scanner Experimental Terrain Scan Processor Improved Reaction Control System Advanced Phase Shifter Cloak of Protection Experimental Utility Shielding Improved Powered Armor Advanced Hacking Suite Advanced Hacking Suite Experimental Hacking Suite Experimental Hacking Suite > --- WEAPON (2) ------- Enhanced Nova Cannon Ionic Axe > --- INVENTORY (5) ---- Cooled VTOL Module Transdimensional Reconstructor Gamma Bomb Array Improved Datajack Peak State ------------ > --- POWER ------------ Graviton Reactor Graviton Reactor > --- PROPULSION ------- Cooled Nuclear Pulse Thruster Cooled Nuclear Pulse Thruster Cooled Nuclear Pulse Thruster Cooled Nuclear Pulse Thruster Cooled Nuclear Pulse Thruster Improved Diametric Drive Improved Diametric Drive Impulse Thruster Array > --- UTILITY ---------- Experimental Terrain Scanner Experimental Terrain Scan Processor Improved Reaction Control System Advanced Phase Shifter Cloak of Protection Experimental Utility Shielding Improved Powered Armor Advanced Hacking Suite Advanced Hacking Suite Experimental Hacking Suite Experimental Hacking Suite > --- WEAPON ----------- Enhanced Nova Cannon Ionic Axe > --- INVENTORY -------- Cooled VTOL Module Transdimensional Reconstructor Gamma Bomb Array Improved Datajack [Rating: 185] Favorites ----------- Power Backup Power VII Engine Heavy Ion Engine Power Core Backup Power VII Reactor Graviton Reactor Propulsion Light Treads Treads Light Treads Flight Unit Cooled VTOL Module Utility Advanced Hacking Suite Device Improved Heat Sink Storage Large Storage Unit Processor Machine Analyzer Hackware Advanced Hacking Suite Protection Layered Light Armor Plating Weapon Minigun Energy Gun Improved EM Shotgun Energy Cannon Beam Cannon Ballistic Gun Minigun Ballistic Cannon Gauss Cannon Launcher Grenade Launcher Slashing Weapon Chainsword Special Melee Weapon Improved Datajack Build | -11 -10 -10 -9 -9 -9 -8 -8 -8 -7 -7 -7 -7 -7 -7 -6 -6 -6 -6 -6 -6 -5 -5 -5 -5 -5 -5 -4 -4 -4 -4 -4 -4 -4 -3 -3 -2 -1 ------- Run | Yrd Mat Min Mat Min Exi Min Mat Gar Fac Was Fac Low Low Zio Pro Fac Ext Cet Arc Hub Fac Was Fac Upp Upp War Pro Fac Was Fac Upp Upp Zhi Pro Res Res Acc Slots Evolved 18 | . . . 2 . . . 2 . 2 . . . . . . 2 . . . . 2 . . . . . . 2 . . . . . . 2 2 2 Power 1 | . . . . . . . . . . . . . . . . . . . . . 1 . . . . . . . . . . . . . . . . Propulsion 7 | . . . 1 . . . 1 . . . . . . . . 1 . . . . 1 . . . . . . . . . . . . . 2 . 1 Utility 10 | . . . 1 . . . 1 . 2 . . . . . . 1 . . . . . . . . . . . 2 . . . . . . . 2 1 Weapon . | . . . . . . . . . . . . . . . . . . . . . . . . . . . . . . . . . . . . . . Parts Attached 183 | 4 7 . 25 1 . . 16 6 25 . 8 1 . 1 . 19 1 . . 1 2 1 20 1 . 7 1 12 . 8 . . 3 1 2 8 2 Power 16 | 1 . . 1 . . . 2 1 1 . . . . . . 2 . . . . . . 2 . . . 1 1 . 2 . . 1 1 . . . Engine 8 | 1 . . 1 . . . 2 1 . . . . . . . 1 . . . . . . 1 . . . 1 . . . . . . . . . . Core 4 | . . . . . . . . . 1 . . . . . . 1 . . . . . . 1 . . . . . . 1 . . . . . . . Reactor 4 | . . . . . . . . . . . . . . . . . . . . . . . . . . . . 1 . 1 . . 1 1 . . . Propulsion 50 | 2 . . 9 . . . 7 3 10 . 1 . . . . 2 . . . 1 1 1 7 . . 3 . . . . . . . . 2 . 1 Treads 20 | 2 . . 9 . . . 6 3 . . . . . . . . . . . . . . . . . . . . . . . . . . . . . Leg . | . . . . . . . . . . . . . . . . . . . . . . . . . . . . . . . . . . . . . . Wheel . | . . . . . . . . . . . . . . . . . . . . . . . . . . . . . . . . . . . . . . Hover . | . . . . . . . . . . . . . . . . . . . . . . . . . . . . . . . . . . . . . . Flight 30 | . . . . . . . 1 . 10 . 1 . . . . 2 . . . 1 1 1 7 . . 3 . . . . . . . . 2 . 1 Utility 82 | 1 2 . 7 1 . . 4 1 10 . 7 1 . . . 13 . . . . 1 . 9 . . 3 . 8 . 5 . . 2 . . 6 1 Device 25 | . 1 . 3 . . . 2 . 2 . 2 1 . . . 5 . . . . . . 1 . . 1 . 1 . 1 . . . . . 4 1 Storage 5 | 1 1 . . 1 . . 1 . . . . . . . . . . . . . . . . . . 1 . . . . . . . . . . . Processor 7 | . . . . . . . . . 1 . . . . . . 1 . . . . 1 . . . . 1 . 2 . 1 . . . . . . . Hackware 30 | . . . . . . . . . 7 . 4 . . . . 5 . . . . . . 5 . . . . 5 . 1 . . 1 . . 2 . Protection 15 | . . . 4 . . . 1 1 . . 1 . . . . 2 . . . . . . 3 . . . . . . 2 . . 1 . . . . Artifact . | . . . . . . . . . . . . . . . . . . . . . . . . . . . . . . . . . . . . . . Weapon 35 | . 5 . 8 . . . 3 1 4 . . . . 1 . 2 1 . . . . . 2 1 . 1 . 3 . 1 . . . . . 2 . Energy Gun 5 | . 2 . 3 . . . . . . . . . . . . . . . . . . . . . . . . . . . . . . . . . . Energy Cannon 8 | . 2 . . . . . . . . . . . . . . 2 . . . . . . 1 . . 1 . . . 1 . . . . . 1 . Ballistic Gun 9 | . . . 5 . . . 2 1 1 . . . . . . . . . . . . . . . . . . . . . . . . . . . . Ballistic Cannon 1 | . . . . . . . . . 1 . . . . . . . . . . . . . . . . . . . . . . . . . . . . Launcher 3 | . 1 . . . . . 1 . . . . . . 1 . . . . . . . . . . . . . . . . . . . . . . . Special Weapon . | . . . . . . . . . . . . . . . . . . . . . . . . . . . . . . . . . . . . . . Impact Weapon . | . . . . . . . . . . . . . . . . . . . . . . . . . . . . . . . . . . . . . . Slashing Weapon 4 | . . . . . . . . . 1 . . . . . . . 1 . . . . . . . . . . 2 . . . . . . . . . Piercing Weapon . | . . . . . . . . . . . . . . . . . . . . . . . . . . . . . . . . . . . . . . Special Melee Weapon 5 | . . . . . . . . . 1 . . . . . . . . . . . . . 1 1 . . . 1 . . . . . . . 1 . Unidentified Prototypes 21 | . . . 1 . . . 1 . 1 . . . . 1 . 7 . . . . . . . . . 5 . 2 . . . . 3 . . . . Parts Lost 41 | . . . 5 . . . . 3 2 . 1 . . . . 4 2 . . 1 . . 17 . . . . 4 . . . . . . 1 . 1 Power 7 | . . . . . . . . 1 . . . . . . . 2 . . . . . . 4 . . . . . . . . . . . . . . Propulsion 12 | . . . . . . . . . . . . . . . . 1 1 . . 1 . . 8 . . . . 1 . . . . . . . . . Utility 16 | . . . 2 . . . . 1 2 . 1 . . . . 1 1 . . . . . 4 . . . . 3 . . . . . . . . 1 Weapon 6 | . . . 3 . . . . 1 . . . . . . . . . . . . . . 1 . . . . . . . . . . . 1 . . Highest Loss Streak 11 | . . . 2 . . . . 1 1 . 1 . . . . 1 1 . . 1 . . 11 . . . . 1 . . . . . . 1 . 1 To Critical Strikes . | . . . . . . . . . . . . . . . . . . . . . . . . . . . . . . . . . . . . . . Average Backups 9 | . 3 7 14 15 15 16 22 23 3 5 4 5 5 5 5 4 4 4 4 4 4 5 4 4 4 4 4 4 4 4 5 5 5 5 3 4 4 Power . | . 1 1 1 1 1 1 1 . . 1 1 1 1 1 1 . 1 1 1 1 1 1 . . . . 1 . . . 1 1 1 . . . . Propulsion 1 | . . . 2 3 3 3 4 7 . . . . . . . . . . . . . . . 1 1 1 1 . . . 1 1 1 1 . 1 1 Utility 4 | . . 3 5 7 7 8 12 11 2 3 2 3 3 3 3 3 2 2 2 2 2 3 2 1 1 . . 1 2 2 2 2 1 1 2 1 . Weapon 2 | . 1 3 4 4 4 4 4 3 1 1 1 1 1 1 1 . 1 1 1 1 . 1 1 2 2 2 2 1 2 1 1 1 1 1 . . 1 Tool/Special . | . . . . . . . . . . . . . . . . . . . . . . . . . . . . . . . . . . . . . . Unused Backups 24 | . . . 7 . . . 2 . 8 . . . . 1 . 1 . . . . . . 1 . . . . 1 . . . . . . . 1 2 Power 3 | . . . 1 . . . 1 . . . . . . . . . . . . . . . . . . . . 1 . . . . . . . . . Propulsion 6 | . . . 3 . . . . . 3 . . . . . . . . . . . . . . . . . . . . . . . . . . . . Utility 9 | . . . . . . . 1 . 4 . . . . 1 . 1 . . . . . . 1 . . . . . . . . . . . . 1 . Weapon 5 | . . . 3 . . . . . 1 . . . . . . . . . . . . . . . . . . . . . . . . . . . 1 Tool/Special 1 | . . . . . . . . . . . . . . . . . . . . . . . . . . . . . . . . . . . . . 1 Average Slot Usage (%) 95 | . 93 100 96 100 100 100 99 99 95 92 98 100 100 100 100 95 88 86 86 81 82 90 81 83 88 87 88 91 100 94 94 94 92 92 93 93 89 Engine 6 | . 14 14 11 11 11 11 9 8 1 . . . . . . 1 . . . . . . 1 5 5 5 9 5 . . . . . . . . . Core 2 | . . . . . . . . . 5 7 7 7 7 7 7 4 6 6 6 6 9 11 7 2 5 5 . 3 10 8 . . . . . . . Treads 16 | . 27 28 31 33 33 33 36 36 . . . . . . . . . . . . . . . . . . . . . . . . . . . . . Flight 14 | . . . . . . . . . 29 30 28 30 30 30 30 31 28 26 26 23 28 31 27 29 29 30 35 31 31 31 31 31 31 31 33 30 32 Device 10 | . 11 14 17 22 22 22 17 12 . . 1 1 7 7 2 5 5 . . 2 3 5 2 2 5 5 2 5 5 7 14 15 12 10 8 10 16 Storage 5 | . 14 14 11 11 11 11 9 9 . . . . . . . . . . . . . . . . . . . . . . . . . . . . . Processor 2 | . . . . . . . . . 6 7 7 7 7 7 7 4 . . . . 2 5 . . . . . 4 5 5 5 5 5 5 4 4 4 Hackware 13 | . . . . . . . . . 27 23 29 30 30 30 30 33 33 33 33 33 29 29 24 17 17 17 17 23 31 22 21 21 22 26 23 25 17 Protection 4 | . . . 3 . . . 8 14 6 7 5 5 . . 4 1 7 13 13 7 1 . 6 13 11 11 7 6 5 8 5 5 5 5 4 4 4 Energy Gun 1 | . 4 . 5 . . . . . . . . . . . . . . . . . . . . . . . . . . . . . . . . . . Energy Cannon 3 | . 19 24 2 . . . . . . . . . . . . . . . . . . . . . . . . . . 2 . . . . . . 2 Ballistic Gun 5 | . . . 13 12 22 22 17 17 . . . . . . . . . . . . . . . . . . . . . . . . . . . . . Launcher 1 | . . 3 1 9 . . . . . . . . . . 1 . . . . . . . . . . . . . . . . . . . . . . Slashing Weapon 2 | . . . . . . . . . 1 7 7 6 7 7 5 5 6 6 6 6 3 5 4 5 5 3 5 4 5 5 5 5 5 3 3 4 4 Special Melee Weapon 2 | . . . . . . . . . 6 7 7 7 7 7 7 3 . . . . . . 1 3 5 5 5 3 5 2 5 5 5 5 4 4 1 Peak Build Rating 185 | 4 9 10 22 22 23 23 36 34 53 50 57 61 61 62 62 78 75 68 68 69 91 95 101 97 94 104 101 126 123 138 134 134 135 143 161 176 185 Average Rating 51 | 3 8 9 19 20 22 23 31 32 46 50 54 57 61 60 58 64 67 68 68 64 80 90 78 90 94 94 94 112 123 125 133 134 132 135 156 169 177 On Entrance 73 | . 4 9 10 22 20 23 23 31 32 50 50 57 61 61 61 57 69 68 68 68 64 87 95 81 94 94 96 92 123 123 132 134 134 135 143 159 169 Avg Prop Armor Cover (%) 4 | . . 10 8 . . . . . . . . . . . . 15 . . . . . 2 1 . . 1 1 . . . . . . . . . . Naked Turns . | . . . . . . . . . . . . . . . . . . . . . . . . . . . . . . . . . . . . . . Heaviest Build 108 | 8 30 30 40 60 60 60 105 108 23 16 19 20 20 20 20 24 19 19 19 19 20 20 31 35 35 35 28 35 22 39 36 32 37 45 52 57 74 Greatest Support 80 | 40 40 40 60 60 60 60 80 80 22 28 28 20 28 20 20 26 27 27 21 22 29 29 45 36 36 37 38 37 48 37 37 37 37 37 66 64 74 Greatest Overweight (x) 4 | . 1 1 1 . . . 1 1 1 . . . . . . 4 . . . . . . 1 . . 1 . 1 . 1 . . . 1 . 1 1 Average Overweight (x) . | . . . . . . . . 1 . . . . . . . . . . . . . . . . . . . . . . . . . . . . . Largest Inventory Capacity 25 | 8 15 15 15 20 20 20 25 25 5 5 5 5 5 5 5 5 5 5 5 5 5 5 5 5 5 5 5 5 5 5 5 5 5 5 5 5 5 Average Capacity 11 | 6 13 15 15 19 20 20 23 25 5 5 5 5 5 5 5 5 5 5 5 5 5 5 5 5 5 5 5 5 5 5 5 5 5 5 5 5 5 Most Carried 25 | 1 7 8 15 15 16 16 25 25 5 5 5 5 5 5 5 5 5 4 4 5 5 5 5 5 4 5 5 5 4 5 5 5 5 5 5 5 5 Average Carried 9 | . 3 7 14 15 15 16 22 23 4 5 4 4 5 4 5 4 4 4 4 4 4 5 4 4 4 4 4 4 4 4 5 5 4 4 3 4 4 Final Capacity 25 | 8 15 15 15 20 20 20 25 25 5 5 5 5 5 5 5 5 5 5 5 5 5 5 5 5 5 5 5 5 5 5 5 5 5 5 5 5 5 Final Carried 25 | 1 7 8 15 15 16 16 25 25 5 5 5 5 5 5 5 5 4 4 4 5 5 5 5 4 4 5 5 4 4 5 5 5 5 5 4 5 4 Class Distribution -------------------- 35% | Scavenger-Mutant 29% | Hacker-Sprinter 9% | Mutant 8% | Wizard-Sprinter 5% | Commander-Mutant 4% | Wizard-Ninja 4% | Hacker-Scout Dominant Class ---------------- Mutant | -10/Materials Commander-Mutant | -10/Mines Scavenger-Mutant | -9/Materials Scavenger-Mutant | -9/Mines Scavenger-Mutant | -9/Exiles Scavenger-Mutant | -8/Mines Scavenger-Mutant | -8/Materials Scavenger-Mutant | -8/Garrison Hacker-Sprinter | -7/Factory Hacker-Sprinter | -7/Waste Hacker-Sprinter | -7/Factory Hacker-Sprinter | -7/Lower Caves Hacker-Sprinter | -7/Lower Caves Hacker-Sprinter | -7/Zion Hacker-Sprinter | -6/Proximity Caves Hacker-Scout | -6/Factory Wizard-Sprinter | -6/Extension Wizard-Sprinter | -6/Cetus Wizard-Sprinter | -6/Archives Wizard-Sprinter | -6/Hub_04(d) Wizard-Sprinter | -5/Factory Wizard-Sprinter | -5/Waste Wizard-Sprinter | -5/Factory Hacker-Sprinter | -5/Upper Caves Hacker-Sprinter | -5/Upper Caves Hacker-Sprinter | -5/Warlord Hacker-Sprinter | -4/Proximity Caves Hacker-Sprinter | -4/Factory Hacker-Sprinter | -4/Waste Hacker-Sprinter | -4/Factory Hacker-Sprinter | -4/Upper Caves Hacker-Sprinter | -4/Upper Caves Hacker-Sprinter | -4/Zhirov Wizard-Sprinter | -3/Proximity Caves Wizard-Ninja | -3/Research Wizard-Ninja | -2/Research Wizard-Ninja | -1/Access Resources | -11 -10 -10 -9 -9 -9 -8 -8 -8 -7 -7 -7 -7 -7 -7 -6 -6 -6 -6 -6 -6 -5 -5 -5 -5 -5 -5 -4 -4 -4 -4 -4 -4 -4 -3 -3 -2 -1 ----------- Run | Yrd Mat Min Mat Min Exi Min Mat Gar Fac Was Fac Low Low Zio Pro Fac Ext Cet Arc Hub Fac Was Fac Upp Upp War Pro Fac Was Fac Upp Upp Zhi Pro Res Res Acc Matter Collected 6516 | 148 310 52 785 92 . . 979 631 531 . 220 33 36 115 138 582 165 . . 19 90 . 407 31 106 . 136 320 . 13 106 . . 64 194 167 46 Remotely . | . . . . . . . . . . . . . . . . . . . . . . . . . . . . . . . . . . . . . . Salvage Created 8798 | . 363 26 2222 169 . . 1369 944 293 . 128 42 . . 220 1136 148 . 40 104 107 . 455 21 . . . 622 . 13 . . . 5 324 47 . Parts 539 | . 28 . 159 13 . . 70 52 16 . 4 7 . . 10 63 9 . 1 8 10 . 24 2 . . . 36 . 2 . . . 1 18 6 . Haulers Intercepted 12 | . 1 . 6 . . . 3 . . . . . . . . 1 . . . . . . . . . . . 1 . . . . . . . . . Recyclers Shooed 9 | . . 1 1 1 . . 1 . 2 . . . . . . 2 . . . . . . . . . . . 1 . . . . . . . . . Parts Field Recycled . | . . . . . . . . . . . . . . . . . . . . . . . . . . . . . . . . . . . . . . Retrieved Matter . | . . . . . . . . . . . . . . . . . . . . . . . . . . . . . . . . . . . . . . Parts Self-Destructed 15 | . . . . . . . . . . . . 4 . . 3 . . . . . . . . 1 . . . . . . . 6 . 1 . . . Prevented 2 | . . . . . . . . . . . . . . . . . . . . . . . . . . . 1 . . . 1 . . . . . . Parts Restored . | . . . . . . . . . . . . . . . . . . . . . . . . . . . . . . . . . . . . . . Kills | -11 -10 -10 -9 -9 -9 -8 -8 -8 -7 -7 -7 -7 -7 -7 -6 -6 -6 -6 -6 -6 -5 -5 -5 -5 -5 -5 -4 -4 -4 -4 -4 -4 -4 -3 -3 -2 -1 ------- Run | Yrd Mat Min Mat Min Exi Min Mat Gar Fac Was Fac Low Low Zio Pro Fac Ext Cet Arc Hub Fac Was Fac Upp Upp War Pro Fac Was Fac Upp Upp Zhi Pro Res Res Acc Combat Hostiles Destroyed 178 | . 12 2 49 7 . . 21 21 7 . . 4 . . 7 12 . . . 1 4 . 9 . . . . 15 . . . . . 1 6 . . Melee 9 | . 1 . . . . . . . . . . . . . 1 4 . . . . . . 1 . . . . . . . . . . 1 1 . . Guns 70 | . 4 . 33 . . . 18 15 . . . . . . . . . . . . . . . . . . . . . . . . . . . . . Cannons 8 | . 2 2 2 . . . . . 1 . . . . . . 1 . . . . . . . . . . . . . . . . . . . . . AOE 90 | . 5 . 13 7 . . 3 6 6 . . 4 . . 6 7 . . . 1 4 . 8 . . . . 15 . . . . . . 5 . . Classes Destroyed 21 | . 6 1 7 1 . . . 1 1 . . . . . 2 . . . . . . . 1 1 . . . . . . . . . . . . . Worker 20 | . 3 . 3 1 . . 2 . 1 . . . . . . . . . . 2 2 . 3 . . . . 1 . . . . . . 2 . . Builder 13 | . . . 4 . . . 2 . . . . . . . . 2 1 . . . . . 2 . . . . 1 . 1 . . . . . . . Tunneler 3 | . . . . 1 . . 1 . . . . . . . . 1 . . . . . . . . . . . . . . . . . . . . . Hauler 12 | . 1 . 6 . . . 3 . . . . . . . . 1 . . . . . . . . . . . 1 . . . . . . . . . Recycler 16 | . . . 1 . . . 3 . 2 . 1 . . . . 4 1 . . . . . 2 . . . . 1 . . . . . . 1 . . Minesweeper 1 | . . . . . . . . . . . . . . . . . . . . . . . . 1 . . . . . . . . . . . . . Mechanic 2 | . . . 2 . . . . . . . . . . . . . . . . . . . . . . . . . . . . . . . . . . Operator 7 | . 2 . . . . . . . 1 . 1 . . . . 1 . . 1 . . . . . . . . . . . . . . . . 1 . Drone 3 | . . . . . . . . . . . . . . . 2 . . . . . . . . . . . . . . . . . . 1 . . . Watcher 26 | . 2 . 5 . . . 3 . 1 . 1 . . . . 4 1 . . . 1 . 1 . . . . 4 . . . . . . 2 1 . Swarmer 76 | . 5 . 13 . . . 7 3 4 . . 4 . . . 8 . . . . 4 . 8 . . . . 15 . . . . . . 5 . . Cutter 1 | . . . . . . . . . . . . . . . . . . . . . . . 1 . . . . . . . . . . . . . . Grunt 57 | . 7 . 18 6 . . 7 12 1 . . . . . 5 1 . . . . . . . . . . . . . . . . . . . . . Brawler 4 | . . . 4 . . . . . . . . . . . . . . . . . . . . . . . . . . . . . . . . . . Duelist 3 | . . . 2 . . . . . 1 . . . . . . . . . . . . . . . . . . . . . . . . . . . . Protector 3 | . . . 2 1 . . . . . . . . . . . . . . . . . . . . . . . . . . . . . . . . . Sentry 23 | . . . 10 . . . 7 5 . . . . . . . . . . . 1 . . . . . . . . . . . . . . . . . Specialist 1 | . . . . . . . . 1 . . . . . . . . . . . . . . . . . . . . . . . . . . . . . Programmer 5 | . . . . . . . . . 1 . . . . . . 3 . . . . . . . . . . . . . . . . . . 1 . . Assembled 2 | . . 2 . . . . . . . . . . . . . . . . . . . . . . . . . . . . . . . . . . . Thug 1 | . . . . 1 . . . . . . . . . . . . . . . . . . . . . . . . . . . . . . . . . Fireman 1 | . . . . . . . . . . . . . . . 1 . . . . . . . . . . . . . . . . . . . . . . Best Kill Streak 13 | . 5 1 9 6 . . 7 4 6 . 1 4 . . 4 5 1 . 1 3 6 . 6 1 . . . 13 . 1 . . . 1 8 1 . Combat Bots Only 10 | . 3 1 6 5 . . 4 4 5 . . 4 . . 4 3 . . . 1 4 . 5 . . . . 10 . . . . . 1 6 . . Max Kills in Single Turn 7 | . 2 1 4 3 . . 3 2 4 . 1 2 . . 3 4 1 . 1 3 4 . 4 1 . . . 7 . 1 . . . 1 5 1 . Gunslinging 1 | . . . 1 . . . . . . . . . . . . . . . . . . . . . . . . . . . . . . . . . . Exploded 6 | . 2 . 3 2 . . 2 2 3 . . 2 . . 2 3 . . . 1 3 . 3 . . . . 6 . . . . . . 4 . . Melee 1 | . 1 . . . . . . . . . . . . . 1 1 . . . . . . 1 . . . . . . . . . . 1 1 . . Uniques/NPCs Destroyed 1 | . . . . . . . . . . . . . . . . . 1 . . . . . . . . . . . . . . . . . . . . A7 (-6/Extension) Combat | -11 -10 -10 -9 -9 -9 -8 -8 -8 -7 -7 -7 -7 -7 -7 -6 -6 -6 -6 -6 -6 -5 -5 -5 -5 -5 -5 -4 -4 -4 -4 -4 -4 -4 -3 -3 -2 -1 -------- Run | Yrd Mat Min Mat Min Exi Min Mat Gar Fac Was Fac Low Low Zio Pro Fac Ext Cet Arc Hub Fac Was Fac Upp Upp War Pro Fac Was Fac Upp Upp Zhi Pro Res Res Acc Hostile Shots Fired 874 | . 46 4 105 27 . . 85 74 51 . 11 7 16 . 4 82 38 6 3 18 5 . 130 2 . . 21 28 . 2 16 2 . 3 16 . 72 Missed 397 | . 13 2 29 13 . . 25 20 25 . 8 2 14 . . 40 25 3 2 10 3 . 60 2 . . 15 12 . 2 10 2 . 3 8 . 49 Hits 477 | . 33 2 76 14 . . 60 54 26 . 3 5 2 . 4 42 13 3 1 8 2 . 70 . . . 6 16 . . 6 . . . 8 . 23 Melee 6 | . . . 2 . . . . . . . . . . . . 1 . . . . . . 3 . . . . . . . . . . . . . . Projectile 471 | . 33 2 74 14 . . 60 54 26 . 3 5 2 . 4 41 13 3 1 8 2 . 67 . . . 6 16 . . 6 . . . 8 . 23 Critical Strikes 22 | . . . 5 . . . 4 . 2 . . . . . . 1 1 . . . . . 7 . . . 1 . . . . . . . . . 1 Part Disruptions 1 | . . 1 . . . . . . . . . . . . . . . . . . . . . . . . . . . . . . . . . . . Damage Taken 8023 | . 399 25 1108 132 . . 598 751 340 . 36 73 26 . 137 592 324 82 27 154 254 . 1703 . . . 139 422 . . 122 . . . 182 . 397 Core 1412 | . 66 . 116 12 . . 55 59 61 . 5 18 . . 10 200 43 47 27 . 119 . 425 . . . 28 76 . . . . . . . . 45 Absorbed by Shields 472 | . . . 24 56 . . 240 124 . . . . . . . 3 25 . . . . . . . . . . . . . . . . . . . . Redirected to Shielding 332 | . . . . . . . . . . . . . . . . . . . . . . . 57 . . . . 101 . . 87 . . . . . 87 Regen/Repaired (Parts) 1304 | . 206 . 45 . . . . . . . 35 . . . . 66 . . . . 421 . 75 . . 16 . 229 . . . . . . 211 . . Core Remaining (%) 81 | 100 . 73 . . . 68 . 79 . . . . . . 86 . . . . 62 . . . . . . 42 . . . . . . 93 100 100 97 Volleys Fired 407 | . 34 6 109 9 . . 89 73 45 . . 2 . . 5 5 . . . 1 1 . 11 . . 1 . 3 . 2 . . . . 4 . 7 Largest 2 | . 2 2 2 2 . . 2 2 1 . . 1 . . 1 1 . . . 1 1 . 1 . . 1 . 1 . 1 . . . . 1 . 1 Hottest 120 | . 120 120 120 55 . . 61 61 40 . . 36 . . 45 113 . . . 45 45 . 90 . . 100 . 45 . 98 . . . . 45 . 120 Shots Fired 703 | . 66 12 204 10 . . 178 146 45 . . 2 . . 5 5 . . . 1 1 . 11 . . 1 . 3 . 2 . . . . 4 . 7 Gun 524 | . 39 . 171 1 . . 175 137 1 . . . . . . . . . . . . . . . . . . . . . . . . . . . . Cannon 112 | . 18 12 22 . . . . . 43 . . . . . . 1 . . . . . . 6 . . 1 . . . 2 . . . . . . 7 Launcher 67 | . 9 . 11 9 . . 3 9 1 . . 2 . . 5 4 . . . 1 1 . 5 . . . . 3 . . . . . . 4 . . Special . | . . . . . . . . . . . . . . . . . . . . . . . . . . . . . . . . . . . . . . Kinetic 467 | . . . 110 1 . . 175 137 44 . . . . . . . . . . . . . . . . . . . . . . . . . . . . Thermal 107 | . 57 12 22 . . . . . . . . . . . . 1 . . . . . . 6 . . . . . . 2 . . . . . . 7 Explosive 67 | . 9 . 11 9 . . 3 9 1 . . 2 . . 5 4 . . . 1 1 . 5 . . . . 3 . . . . . . 4 . . Electromagnetic 61 | . . . 61 . . . . . . . . . . . . . . . . . . . . . . . . . . . . . . . . . . Entropic 1 | . . . . . . . . . . . . . . . . . . . . . . . . . . 1 . . . . . . . . . . . Robot Hit Streak 27 | . 13 2 18 4 . . 19 25 27 . . 4 . . . 6 . . . . 3 . 2 . . . . 1 . . . . . . 7 . . Robot Miss Streak 6 | . 3 2 5 3 . . 6 2 6 . . . . . . 3 . . . . 4 . 1 . . . . 5 . . . . . . 2 . . Penetration Max . | . . . . . . . . . . . . . . . . . . . . . . . . . . . . . . . . . . . . . . Secondary Targets 6 | . . . 4 . . . 1 1 . . . . . . . . . . . . . . . . . . . . . . . . . . . . . Max Gunslinging Chain 1 | . . . 1 . . . 1 1 . . . . . . . . . . . . . . . . . . . . . . . . . . . . . Shots Hit Robots 545 | . 40 6 148 4 . . 111 103 20 . 4 2 . . 2 42 5 . 1 . 6 . 15 1 . . . 13 . 3 . . . 1 8 10 . Core Hits 458 | . 26 8 110 24 . . 49 46 8 . 2 5 . . 31 35 2 . 1 4 8 . 28 1 . . . 40 . . . . . . 28 2 . Critical Kills 1 | . 1 . . . . . . . . . . . . . . . . . . . . . . . . . . . . . . . . . . . . Critical Parts Destroyed 3 | . . . 1 . . . . 2 . . . . . . . . . . . . . . . . . . . . . . . . . . . . . Critical Strikes 10 | . 1 . 1 . . . . 2 3 . . . . . . 2 . . . . . . . . . . . . . . . . . . . 1 . Meltdown 1 | . 1 . . . . . . . . . . . . . . . . . . . . . . . . . . . . . . . . . . . . Destroy 3 | . . . 1 . . . . 2 . . . . . . . . . . . . . . . . . . . . . . . . . . . . . Blast 3 | . . . . . . . . . 3 . . . . . . . . . . . . . . . . . . . . . . . . . . . . Sever 3 | . . . . . . . . . . . . . . . . 2 . . . . . . . . . . . . . . . . . . . 1 . Melee Attacks 297 | . . . . . . . . . 13 . 13 . . 4 6 68 9 . 10 2 6 . 49 1 . . 3 40 . 25 1 2 . 1 6 23 15 Impact . | . . . . . . . . . . . . . . . . . . . . . . . . . . . . . . . . . . . . . . Slashing 285 | . . . . . . . . . 10 . 13 . . 4 6 66 9 . 10 2 6 . 49 1 . . 3 38 . 25 1 2 . 1 6 18 15 Piercing . | . . . . . . . . . . . . . . . . . . . . . . . . . . . . . . . . . . . . . . Sneak Attacks 42 | . . . . . . . . . 3 . 2 . . . . 13 3 . 1 . 1 . 5 1 . . . 3 . 2 . . . . 2 6 . Combat Hostiles 1 | . . . . . . . . . . . . . . . . 1 . . . . . . . . . . . . . . . . . . . . . Follow-up Attacks . | . . . . . . . . . . . . . . . . . . . . . . . . . . . . . . . . . . . . . . Damage Inflicted 23000 | . 1126 160 3847 1053 . . 2367 2353 1131 . 318 330 . . 980 2707 261 . 95 235 679 . 1739 72 . . . 1824 . 245 . . . 82 1032 364 . Guns 6202 | . 255 . 2153 19 . . 2056 1699 20 . . . . . . . . . . . . . . . . . . . . . . . . . . . . Cannons 1081 | . 227 123 229 . . . . . 455 . . . . . . 47 . . . . . . . . . . . . . . . . . . . . . Explosions 9679 | . 621 . 1397 1015 . . 234 654 656 . . 330 . . 913 580 . . . 235 406 . 847 . . . . 1106 . . . . . . 685 . . Melee 5782 | . . . . . . . . . . . 286 . . . 67 2080 261 . 95 . 273 . 892 72 . . . 718 . 245 . . . 82 347 364 . Ramming 256 | . 23 37 68 19 . . 77 . . . 32 . . . . . . . . . . . . . . . . . . . . . . . . . . Kinetic 5561 | . . . 1312 19 . . 2056 1699 475 . . . . . . . . . . . . . . . . . . . . . . . . . . . . Thermal 2090 | . 482 123 528 . . . . . 569 . . . . . . 47 . . . . 341 . . . . . . . . . . . . . . . . Explosive 8258 | . 621 . 1098 1015 . . 234 654 87 . . 330 . . 913 580 . . . 23 65 . 847 . . . . 1106 . . . . . . 685 . . Electromagnetic 1053 | . . . 841 . . . . . . . . . . . . . . . . 212 . . . . . . . . . . . . . . . . . Impact . | . . . . . . . . . . . . . . . . . . . . . . . . . . . . . . . . . . . . . . Slashing 5782 | . . . . . . . . . . . 286 . . . 67 2080 261 . 95 . 273 . 892 72 . . . 718 . 245 . . . 82 347 364 . Piercing . | . . . . . . . . . . . . . . . . . . . . . . . . . . . . . . . . . . . . . . Highest Corruption 8 | . . . . . . . . . 1 8 8 . . . . 1 1 1 1 3 . . 6 6 6 6 . 1 1 1 1 1 1 1 3 . . Average Corruption 2 | . . . . . . . . . 1 8 4 . . . . 1 1 1 1 1 . . 5 6 6 6 . 1 1 1 1 1 1 1 2 . . Corruption Purged 10 | . . . . . . . . . 1 . 9 . . . . . . . . . . . . . . . . . . . . . . . . . . Corruption Blocked . | . . . . . . . . . . . . . . . . . . . . . . . . . . . . . . . . . . . . . . Effects 51 | . . . . . . . . . . . 10 . . . . 1 6 . 1 1 . . 17 1 3 . . 2 . 5 2 . . . 2 . . Message Errors 13 | . . . . . . . . . . . 6 . . . . . 1 . . . . . 4 . . . . . . 1 1 . . . . . . Matter Fused 19 | . . . . . . . . . . . 2 . . . . 1 3 . 1 1 . . 7 . 1 . . . . 1 . . . . 2 . . Heat Flow Errors 4 | . . . . . . . . . . . 1 . . . . . . . . . . . 2 . . . . 1 . . . . . . . . . Energy Discharges 6 | . . . . . . . . . . . 1 . . . . . . . . . . . 3 . 1 . . . . 1 . . . . . . . Parts Rejected 1 | . . . . . . . . . . . . . . . . . . . . . . . 1 . . . . . . . . . . . . . . Data Loss (minor) 4 | . . . . . . . . . . . . . . . . . 1 . . . . . . . . . . . . 2 1 . . . . . . Data Loss (major) 2 | . . . . . . . . . . . . . . . . . . . . . . . . 1 1 . . . . . . . . . . . . Alerts 2 | . . . . . . . . . . . . . . . . . 1 . . . . . . . . . . 1 . . . . . . . . . Overload Shots . | . . . . . . . . . . . . . . . . . . . . . . . . . . . . . . . . . . . . . . Overflow Damage 1545 | . 3 . 3 14 . . 31 38 278 . 20 20 . . . 430 84 . . . 66 . 200 . . . . 84 . 111 . . . 52 65 46 . Projectiles 57 | . . . . . . . . . 57 . . . . . . . . . . . . . . . . . . . . . . . . . . . . Explosions 434 | . 3 . 3 14 . . 25 38 221 . . 20 . . . . . . . . 48 . 35 . . . . 24 . . . . . . 3 . . Melee 1054 | . . . . . . . 6 . . . 20 . . . . 430 84 . . . 18 . 165 . . . . 60 . 111 . . . 52 62 46 . Knockbacks 6 | . . 1 . . . . 1 . 4 . . . . . . . . . . . . . . . . . . . . . . . . . . . . Impact 2 | . . 1 . . . . 1 . . . . . . . . . . . . . . . . . . . . . . . . . . . . . . Kinetic 4 | . . . . . . . . . 4 . . . . . . . . . . . . . . . . . . . . . . . . . . . . Secondary . | . . . . . . . . . . . . . . . . . . . . . . . . . . . . . . . . . . . . . . Self-Inflicted Damage 1006 | . 52 . 197 30 . . . 35 46 . 16 . . . 64 63 . . . 99 225 . 108 . . . . 71 . . . . . . . . . Shots 36 | . 2 . 6 2 . . . 2 1 . . . . . 2 4 . . . 1 8 . 5 . . . . 3 . . . . . . . . . Rammed 30 | 1 2 11 10 2 . . 3 . . . 1 . . . . . . . . . . . . . . . . . . . . . . . . . . Targets Rammed 37 | 1 4 11 13 2 . . 5 . . . 1 . . . . . . . . . . . . . . . . . . . . . . . . . . Kicked . | . . . . . . . . . . . . . . . . . . . . . . . . . . . . . . . . . . . . . . Crushed 7 | . 2 . 3 . . . 2 . . . . . . . . . . . . . . . . . . . . . . . . . . . . . . Highest Temperature 324 | . 114 56 36 19 . . 190 190 42 123 144 . 38 . 3 52 127 82 . . 15 . 295 2 2 54 324 293 . . . . . . 120 3 163 Average Temperature 61 | . 38 22 9 13 . . 40 55 11 73 56 . 23 . 3 5 62 40 . . 4 . 154 2 2 11 113 80 . . . . . . 57 3 33 Received Heat Transfer 1493 | . 123 20 334 52 . . 287 292 51 . 6 . . . 36 78 25 18 . 12 . . 129 . . . 21 9 . . . . . . . . . Siege Activations . | . . . . . . . . . . . . . . . . . . . . . . . . . . . . . . . . . . . . . . Martial Activations . | . . . . . . . . . . . . . . . . . . . . . . . . . . . . . . . . . . . . . . Shielding Activations . | . . . . . . . . . . . . . . . . . . . . . . . . . . . . . . . . . . . . . . Robots Disrupted . | . . . . . . . . . . . . . . . . . . . . . . . . . . . . . . . . . . . . . . Combat Hostiles . | . . . . . . . . . . . . . . . . . . . . . . . . . . . . . . . . . . . . . . Robots Corrupted 3 | . . . 1 . . . 1 . . . 1 . . . . . . . . . . . . . . . . . . . . . . . . . . Combat Hostiles 1 | . . . 1 . . . . . . . . . . . . . . . . . . . . . . . . . . . . . . . . . . Parts Fried 10 | . . . 6 . . . 3 . . . 1 . . . . . . . . . . . . . . . . . . . . . . . . . . Impact Corruptions 2 | . . . . . . . 1 . . . 1 . . . . . . . . . . . . . . . . . . . . . . . . . . Robots Melted 1 | . 1 . . . . . . . . . . . . . . . . . . . . . . . . . . . . . . . . . . . . Combat Hostiles . | . . . . . . . . . . . . . . . . . . . . . . . . . . . . . . . . . . . . . . Parts Melted 6 | . 3 . 1 . . . . . . . . . . . 2 . . . . . . . . . . . . . . . . . . . . . . Heat Transferred 2683 | . 1056 259 781 . . . . . 300 . . . . . . 37 . . . . 250 . . . . . . . . . . . . . . . . Parts Sabotaged 3 | . . . . . . . . . . . . . . . . 3 . . . . . . . . . . . . . . . . . . . . . Parts Stolen . | . . . . . . . . . . . . . . . . . . . . . . . . . . . . . . . . . . . . . . Parts Stripped . | . . . . . . . . . . . . . . . . . . . . . . . . . . . . . . . . . . . . . . Power Chain Reactions 6 | . . . 6 . . . . . . . . . . . . . . . . . . . . . . . . . . . . . . . . . . Alert | -11 -10 -10 -9 -9 -9 -8 -8 -8 -7 -7 -7 -7 -7 -7 -6 -6 -6 -6 -6 -6 -5 -5 -5 -5 -5 -5 -4 -4 -4 -4 -4 -4 -4 -3 -3 -2 -1 ------- Run | Yrd Mat Min Mat Min Exi Min Mat Gar Fac Was Fac Low Low Zio Pro Fac Ext Cet Arc Hub Fac Was Fac Upp Upp War Pro Fac Was Fac Upp Upp Zhi Pro Res Res Acc Maximum Alert Level 3 | . . . 3 1 . . . 3 2 . . . . . . 1 1 . . 1 1 . 1 . . . . 2 . . . . . . 2 . . Low Security (%) 62 | 100 100 100 23 56 . 100 100 17 12 100 100 . . . . 67 82 100 100 54 51 100 28 . . . . 69 100 100 . . . . 69 100 100 Level 1 20 | . . . 12 43 . . . 21 63 . . . . . . 32 17 . . 45 48 . 71 . . . . 11 . . . . . . 17 . . Level 2 15 | . . . 61 . . . . 50 24 . . . . . . . . . . . . . . . . . . 19 . . . . . . 12 . . Level 3 1 | . . . 2 . . . . 11 . . . . . . . . . . . . . . . . . . . . . . . . . . . . . Level 4 . | . . . . . . . . . . . . . . . . . . . . . . . . . . . . . . . . . . . . . . Level 5 . | . . . . . . . . . . . . . . . . . . . . . . . . . . . . . . . . . . . . . . High Security . | . . . . . . . . . . . . . . . . . . . . . . . . . . . . . . . . . . . . . . Max Security . | . . . . . . . . . . . . . . . . . . . . . . . . . . . . . . . . . . . . . . Sterilizations 1 | . . . 1 . . . . . . . . . . . . . . . . . . . . . . . . . . . . . . . . . . Peak Influence 863 | . 154 14 722 291 . . 163 863 469 148 135 . . . . 384 277 32 20 256 243 67 378 . . . . 554 16 15 . . . . 478 47 107 Initial 452 | . . 14 . 259 . . . 85 452 118 96 . . . . 9 186 32 . 4 115 67 39 . . . . 34 16 11 . . . . 300 . . Average 181 | . 60 . 401 156 . . 99 439 299 136 35 . . . . 112 62 14 12 105 139 63 213 . . . . 162 16 2 . . . . 126 8 20 Influence Increases 10219 | . 478 . 1691 197 . . 714 808 900 30 249 90 90 . 222 874 357 1 22 277 328 . 877 5 . . 75 933 . 101 . 15 . 5 583 105 192 Destroy 0b10 Robot/C 3700 | . 240 . 980 140 . . 420 420 180 . . 80 . . 120 240 160 . . 20 100 . 180 . . . . 300 . . . . . . 120 . . Destroy 0b10 Robot/NC 565 | . 40 . 115 15 . . 70 15 40 . 15 . . . 10 65 20 . 5 10 15 . 40 5 . . . 40 . 5 . . . 5 25 10 . Destroy Leader 768 | . 56 . 262 20 . . 132 10 32 . 2 10 . . 20 80 14 . . 10 22 . 32 . . . . 40 . . . . . . 24 2 . Allied During Kill 76 | . . . 16 4 . . . . . . . . . . 12 . 41 . . . 3 . . . . . . . . . . . . . . . . Trap Triggered on 0b10 290 | . . . . . . . . . 90 . 40 . . . . 70 . . . 20 20 . . . . . . 30 . 20 . . . . . . . Successful Hack 507 | . 28 . 47 . . . 10 . 70 . 36 . . . . 33 4 . . . 36 . 83 . . . . 76 . . . . . . 21 39 24 Select Force Hacks 140 | . 30 . 60 . . . . . . . . . . . . . . . . 50 . . . . . . . . . . . . . . . . . Disable Machine 480 | . 15 . 75 . . . 15 15 135 . . . . . . 30 . . 15 90 60 . . . . . . . . . . . . . . . 30 Anti-Garrison Action 300 | . . . . . . . . 300 . . . . . . . . . . . . . . . . . . . . . . . . . . . . . Destroy Structure 963 | . 54 . 76 18 . . 22 33 113 . 6 . . . . 56 13 1 2 77 72 . 152 . . . . 102 . 46 . . . . 48 24 48 Advance Influence 300 | . . . . . . . . . . . . . . . . . . . . . . . . . . . . . . . . . . . 300 . . Partial Spotted 510 | . . . . . . . . . 30 30 90 . . . . 150 15 . . . . . 30 . . . . 75 . . . . . . . 15 75 Lose Combat Pursuer 1620 | . 15 . 60 . . . 45 15 210 . 60 . 90 . 60 150 90 . . . . . 360 . . . 75 270 . 30 . 15 . . 45 15 15 Influence Decreases 10112 | . 440 38 1024 864 . . 582 77 1425 230 387 30 42 108 207 509 679 59 10 52 372 136 751 98 58 32 20 942 30 102 15 15 . 5 583 105 85 Entered New Map 1952 | . . 24 . 408 . . . 47 411 220 42 . 12 108 . 6 194 26 . 8 122 126 18 68 18 32 . 21 30 5 6 . . . . . . Time Decay 5255 | . 440 14 596 456 . . 572 . 572 10 305 30 30 . 149 445 157 13 10 44 130 10 453 30 40 . 20 305 . 95 9 15 . 5 113 105 82 Search Patrol Dispatched 100 | . . . . . . . . . . . . . . . . . . . . . . . 100 . . . . . . . . . . . . . . Lost Part 373 | . . . 50 . . . . 30 20 . 10 . . . . 40 10 . . . . . 170 . . . . 30 . . . . . . 10 . 3 Lost Ally 357 | . . . 78 . . . 10 . 10 . 30 . . . 58 18 51 20 . . 20 . 10 . . . . 40 . 2 . . . . 10 . . Purge Threat 2075 | . . . 300 . . . . . 412 . . . . . . . 267 . . . 100 . . . . . . 546 . . . . . . 450 . . Squads Dispatched 105 | . 4 . 9 1 . . 6 . 14 . 8 . . . . 17 1 . . 3 . . 13 . . . . 11 . 8 . . . . . 5 5 Investigation 56 | . 2 . 5 . . . 2 . 9 . 5 . . . . 4 . . . 3 . . 7 . . . . 8 . 4 . . . . . 5 2 Extermination 19 | . . . . . . . . . 4 . 2 . . . . 6 . . . . . . 3 . . . . 1 . 1 . . . . . . 2 Reinforcement 17 | . 2 . 1 . . . . . 1 . 1 . . . . 3 1 . . . . . 3 . . . . 1 . 3 . . . . . . 1 Assault 5 | . . . 3 1 . . . . . . . . . . . . . . . . . . . . . . . 1 . . . . . . . . . Garrison 8 | . . . . . . . 4 . . . . . . . . 4 . . . . . . . . . . . . . . . . . . . . . Intercept . | . . . . . . . . . . . . . . . . . . . . . . . . . . . . . . . . . . . . . . Searches Triggered 1 | . . . . . . . . . . . . . . . . . . . . . . . 1 . . . . . . . . . . . . . . Unchained Authorized 3 | . . . . . . . . . . . . . . . . . 1 . . . . . 1 . . . . . . 1 . . . . . . . Construction Impeded 3 | . . . 1 . . . . . . . . . . . . . . . . . . . 1 . . . . . . 1 . . . . . . . Haulers Reinforced . | . . . . . . . . . . . . . . . . . . . . . . . . . . . . . . . . . . . . . . Active Scanning Responses . | . . . . . . . . . . . . . . . . . . . . . . . . . . . . . . . . . . . . . . Cargo Convoy Interrupts 1 | . . . . . . . . . . . . . . . . 1 . . . . . . . . . . . . . . . . . . . . . Stealth | -11 -10 -10 -9 -9 -9 -8 -8 -8 -7 -7 -7 -7 -7 -7 -6 -6 -6 -6 -6 -6 -5 -5 -5 -5 -5 -5 -4 -4 -4 -4 -4 -4 -4 -3 -3 -2 -1 --------- Run | Yrd Mat Min Mat Min Exi Min Mat Gar Fac Was Fac Low Low Zio Pro Fac Ext Cet Arc Hub Fac Was Fac Upp Upp War Pro Fac Was Fac Upp Upp Zhi Pro Res Res Acc Distress Signals 31 | . 2 . 5 . . . 5 . 5 . 1 . . . . . 1 1 . . . . 3 . . . . 2 . 1 . . . . . 4 1 Communications Jammed . | . . . . . . . . . . . . . . . . . . . . . . . . . . . . . . . . . . . . . . Distress Signals . | . . . . . . . . . . . . . . . . . . . . . . . . . . . . . . . . . . . . . . Times Spotted 484 | . 19 7 66 9 . . 38 21 34 1 15 4 7 . 11 36 20 5 3 3 7 5 57 3 . . 11 45 5 7 3 2 . 3 11 20 6 Peak Tracking Total 14 | . 4 2 5 5 . . 8 4 9 1 4 4 6 . 4 6 7 5 3 1 4 5 14 3 . . 6 10 5 3 3 2 . 3 7 8 5 Tactical Retreats 59 | . 1 . 2 . . . 1 1 10 . 2 . 3 . 2 6 3 . . . . . 11 . . . 2 9 . 2 . 1 . . 1 1 1 Traps | -11 -10 -10 -9 -9 -9 -8 -8 -8 -7 -7 -7 -7 -7 -7 -6 -6 -6 -6 -6 -6 -5 -5 -5 -5 -5 -5 -4 -4 -4 -4 -4 -4 -4 -3 -3 -2 -1 ------- Run | Yrd Mat Min Mat Min Exi Min Mat Gar Fac Was Fac Low Low Zio Pro Fac Ext Cet Arc Hub Fac Was Fac Upp Upp War Pro Fac Was Fac Upp Upp Zhi Pro Res Res Acc Traps Triggered 23 | . 2 . 2 . . . 1 4 2 . . . . . . . 2 . . . 1 . 6 . . . . 1 . . . . . . . 1 1 Indirectly . | . . . . . . . . . . . . . . . . . . . . . . . . . . . . . . . . . . . . . . Trap Hack Attempts 182 | . . . . . . . . . 105 . 46 . . . . 25 . . . . . . . . . . . 6 . . . . . . . . . Triggered 1 | . . . . . . . . . 1 . . . . . . . . . . . . . . . . . . . . . . . . . . . . Disarmed 13 | . . . . . . . . . 5 . . . . . . 1 . . . . . . 7 . . . . . . . . . . . . . . Reprogrammed 60 | . . . . . . . 4 . 24 . 7 . . . . 11 . . . . 5 . . . . . . 3 . 6 . . . . . . . Reused 29 | . . . . . . . . . 9 . 4 . . . . 7 . . . 2 2 . . . . . . 3 . 2 . . . . . . . Traps Extracted 14 | . . . . . . . . . 5 . 4 . . . . 5 . . . . . . . . . . . . . . . . . . . . . Installed 17 | . . . . . . . . . 3 . 3 . . . . 9 . . . 2 . . . . . . . . . . . . . . . . . Triggered 29 | . . . . . . . . . 9 . 4 . . . . 7 . . . 2 2 . . . . . . 3 . 2 . . . . . . . Most Traps Carried 7 | . . . . . . . . 3 5 5 7 6 6 6 6 6 2 2 2 2 . . . . . . . . . . . . . . . . . Machines | -11 -10 -10 -9 -9 -9 -8 -8 -8 -7 -7 -7 -7 -7 -7 -6 -6 -6 -6 -6 -6 -5 -5 -5 -5 -5 -5 -4 -4 -4 -4 -4 -4 -4 -3 -3 -2 -1 ---------- Run | Yrd Mat Min Mat Min Exi Min Mat Gar Fac Was Fac Low Low Zio Pro Fac Ext Cet Arc Hub Fac Was Fac Upp Upp War Pro Fac Was Fac Upp Upp Zhi Pro Res Res Acc Machines Disabled 37 | . 1 . 5 . . . 1 4 9 . . . . . . 2 1 . 1 6 4 . . . . 1 . . . . . . . . . . 2 Max in Single Turn 7 | . 1 . 1 . . . 1 1 7 . . . . . . 1 . . 1 6 4 . . . . 1 . . . . . . . . . . 1 Garrison Access 16 | . . . . . . . . . 3 . 2 . . . . 1 . . . . 1 . 3 . . . . 2 . . . . . . . 3 1 Garrison Relay 3 | . . . . . . . . 3 . . . . . . . . . . . . . . . . . . . . . . . . . . . . . Network Hub 2 | . . . . . . . . . . . . . . . . . . . . 2 . . . . . . . . . . . . . . . . . Machines Repaired . | . . . . . . . . . . . . . . . . . . . . . . . . . . . . . . . . . . . . . . Machines Dismantled . | . . . . . . . . . . . . . . . . . . . . . . . . . . . . . . . . . . . . . . Machines Sabotaged 1 | . . . . . . . . . . . . . . . . . . . . 1 . . . . . . . . . . . . . . . . . Overloaded Fab Kills . | . . . . . . . . . . . . . . . . . . . . . . . . . . . . . . . . . . . . . . Hacking | -11 -10 -10 -9 -9 -9 -8 -8 -8 -7 -7 -7 -7 -7 -7 -6 -6 -6 -6 -6 -6 -5 -5 -5 -5 -5 -5 -4 -4 -4 -4 -4 -4 -4 -3 -3 -2 -1 --------- Run | Yrd Mat Min Mat Min Exi Min Mat Gar Fac Was Fac Low Low Zio Pro Fac Ext Cet Arc Hub Fac Was Fac Upp Upp War Pro Fac Was Fac Upp Upp Zhi Pro Res Res Acc Machines Accessed 175 | . 8 . 14 . 2 . 10 2 21 . 15 . . . . 15 5 . . 4 4 . 24 . . 2 . 20 . 11 . . 4 . 3 8 3 Terminals 97 | . 6 . 10 . . . 8 2 8 . 8 . . . . 8 5 . . 4 1 . 12 . . . . 11 . 7 . . . . 2 3 2 Fabricators 27 | . . . . . . . . . 5 . 4 . . . . 3 . . . . . . 5 . . . . 5 . 3 . . . . . 2 . Repair Stations 14 | . 1 . 1 . . . . . 2 . 1 . . . . 2 . . . . 2 . 2 . . . . 2 . . . . . . 1 . . Recycling Units 9 | . 1 . 2 . . . . . 3 . . . . . . 1 . . . . . . 1 . . . . . . 1 . . . . . . . Scanalyzers 4 | . . . 1 . . . 1 . . . . . . . . . . . . . . . 1 . . . . . . . . . . . . 1 . Garrison Access 16 | . . . . . . . 1 . 3 . 2 . . . . 1 . . . . 1 . 3 . . . . 2 . . . . . . . 2 1 Total Hacks 575 | . 27 . 52 . 2 . 23 6 63 . 36 . . . . 47 10 . . 9 20 . 82 . . 2 . 76 . 49 . . 17 . 24 19 11 Successful 384 | . 17 . 30 . 2 . 10 . 45 . 21 . . . . 33 8 . . 6 14 . 57 . . 2 . 47 . 39 . . 17 . 20 12 4 Failed 187 | . 10 . 22 . . . 12 6 18 . 15 . . . . 13 2 . . 3 6 . 25 . . . . 29 . 9 . . . . 4 6 7 Catastrophic 22 | . . . 2 . . . 1 2 2 . 3 . . . . 1 . . . . . . 4 . . . . 5 . 1 . . . . . . 1 Database Lockouts 4 | . . . . . . . 1 . . . . . . . . 1 . . . . . . . . . . . . . 1 . . . . . 1 . Manual 264 | . 16 . 31 . 1 . 12 . 18 . 13 . . . . 20 5 . . 7 1 . 45 . . . . 46 . 22 . . . . 10 10 7 Terminals 366 | . 21 . 41 . . . 20 6 26 . 19 . . . . 29 10 . . 9 8 . 55 . . . . 57 . 32 . . . . 13 10 10 Fabricators 87 | . . . . . . . . . 17 . 11 . . . . 10 . . . . . . 16 . . . . 13 . 15 . . . . . 5 . Repair Stations 54 | . 5 . 5 . . . . . 5 . 4 . . . . 5 . . . . 11 . 5 . . . . 3 . . . . . . 11 . . Recycling Units 20 | . 1 . 2 . . . . . 11 . . . . . . 2 . . . . . . 2 . . . . . . 2 . . . . . . . Scanalyzers 9 | . . . 4 . . . 2 . . . . . . . . . . . . . . . 1 . . . . . . . . . . . . 2 . Garrison Access 18 | . . . . . . . 1 . 4 . 2 . . . . 1 . . . . 1 . 3 . . . . 3 . . . . . . . 2 1 Terminal Hacks 153 | . 4 . 10 . 2 . 2 . 12 . 6 . . . . 11 8 . . 2 4 . 25 . . 2 . 19 . 15 . . 17 . 8 3 3 Record 6 | . . . . . 1 . . . . . . . . . . . . . . . . . . . . . . . . . . . 5 . . . . Part Schematic 14 | . . . . . . . . . 1 . 1 . . . . 1 . . . . . . 3 . . . . 2 . 1 . . 4 . . 1 . Robot Analysis 9 | . 1 . 2 . . . . . . . . . . . . . . . . . . . 2 . . . . . . . . . 4 . . . . Prototype ID Bank 9 | . 2 . 2 . . . . . . . . . . . . . . . . . . . . . . . . . . 1 . . 4 . . . . Open Door 5 | . . . . . . . . . . . . . . . . . 3 . . . . . . . . 2 . . . . . . . . . . . Level Access Points 5 | . . . . . . . . . . . . . . . . 1 . . . . . . . . . . . . . 1 . . . . 1 1 1 Branch Access Points 6 | . . . . . . . . . . . 1 . . . . 1 . . . . . . 1 . . . . 1 . . . . . . 1 . 1 Machine Index 6 | . . . . . . . . . 1 . . . . . . 1 . . . . . . 1 . . . . 1 . 1 . . . . 1 . . Terminal Index 2 | . . . 1 . . . . . . . . . . . . . . . . 1 . . . . . . . . . . . . . . . . . Garrison Index 1 | . . . . . . . . . . . . . . . . . . . . . . . 1 . . . . . . . . . . . . . . Alert Level 2 | . . . 1 . . . . . 1 . . . . . . . . . . . . . . . . . . . . . . . . . . . . Unreport Threat 18 | . . . 2 . . . . . 3 . . . . . . . 3 . . . 2 . . . . . . 5 . . . . . . 3 . . Locate Traps 6 | . 1 . . . . . . . 1 . . . . . . 1 . . . . . . 2 . . . . 1 . . . . . . . . . Disarm Traps 2 | . . . . . . . . . . . . . . . . . . . . . . . 2 . . . . . . . . . . . . . . Reprogram Traps 7 | . . . . . . . 1 . . . . . . . . 1 . . . . 1 . . . . . . . . 4 . . . . . . . Dispatch Records 1 | . . . . . . . . . . . . . . . . . . . . . . . . . . . . 1 . . . . . . . . . Patrol Status 2 | . . . . . . . . . . . . . . . . 1 . . . . . . . . . . . 1 . . . . . . . . . Transport Status 1 | . . . 1 . . . . . . . . . . . . . . . . . . . . . . . . . . . . . . . . . . Recall Investigation 15 | . . . . . . . . . 3 . 2 . . . . 1 1 . . . . . 3 . . . . 2 . 3 . . . . . . . Recall Extermination 9 | . . . . . . . . . 1 . 1 . . . . 1 . . . . . . 4 . . . . 1 . . . . . . . . 1 Recall Reinforcements 6 | . . . . . . . . . . . . . . . . . 1 . . . . . 3 . . . . . . 2 . . . . . . . Recall Assault 1 | . . . . . . . . . . . . . . . . . . . . . . . . . . . . . . . . . . . . 1 . Hauler Manifests 4 | . . . 1 . . . . . . . 1 . . . . . . . . . 1 . . . . . . . . . . . . . 1 . . Registered Components 4 | . . . . . . . . . 1 . . . . . . 1 . . . . . . . . . . . 1 . 1 . . . . . . . Registered Prototypes 2 | . . . . . . . . . . . . . . . . . . . . . . . 1 . . . . 1 . . . . . . . . . Zone Layout 9 | . . . . . . . 1 . . . . . . . . 1 . . . 1 . . 2 . . . . 2 . 1 . . . . 1 . . Proto ID Catalog 1 | . . . . . 1 . . . . . . . . . . . . . . . . . . . . . . . . . . . . . . . . Fabricator Hacks 55 | . . . . . . . . . 11 . 5 . . . . 7 . . . . . . 9 . . . . 7 . 12 . . . . . 4 . Load Schematic 33 | . . . . . . . . . 7 . 3 . . . . 4 . . . . . . 6 . . . . 5 . 6 . . . . . 2 . Build 22 | . . . . . . . . . 4 . 2 . . . . 3 . . . . . . 3 . . . . 2 . 6 . . . . . 2 . Repair Station Hacks 43 | . 4 . 2 . . . . . 1 . 4 . . . . 5 . . . . 9 . 5 . . . . 3 . . . . . . 10 . . Scan Component 19 | . 2 . 1 . . . . . . . 2 . . . . 2 . . . . 4 . 2 . . . . 1 . . . . . . 5 . . Repair 19 | . 2 . 1 . . . . . . . 2 . . . . 2 . . . . 4 . 2 . . . . 1 . . . . . . 5 . . Refit 5 | . . . . . . . . . 1 . . . . . . 1 . . . . 1 . 1 . . . . 1 . . . . . . . . . Recycling Unit Hacks 11 | . . . . . . . . . 9 . . . . . . . . . . . . . 1 . . . . . . 1 . . . . . . . Recycle Component 1 | . . . . . . . . . 1 . . . . . . . . . . . . . . . . . . . . . . . . . . . . Process 4 | . . . . . . . . . 4 . . . . . . . . . . . . . . . . . . . . . . . . . . . . Retrieve Matter 4 | . . . . . . . . . 4 . . . . . . . . . . . . . . . . . . . . . . . . . . . . Retrieve Components 2 | . . . . . . . . . . . . . . . . . . . . . . . 1 . . . . . . 1 . . . . . . . Scanalyzer 7 | . . . 4 . . . 1 . . . . . . . . . . . . . . . 1 . . . . . . . . . . . . 1 . Retrieve Study 7 | . . . 4 . . . 1 . . . . . . . . . . . . . . . 1 . . . . . . . . . . . . 1 . Garrison Access Hacks 16 | . . . . . . . 1 . 3 . 2 . . . . 1 . . . . 1 . 3 . . . . 2 . . . . . . . 2 1 Unlock Access 1 | . . . . . . . 1 . . . . . . . . . . . . . . . . . . . . . . . . . . . . . . Seal Access 15 | . . . . . . . . . 3 . 2 . . . . 1 . . . . 1 . 3 . . . . 2 . . . . . . . 2 1 Unauthorized Hacks 99 | . 9 . 14 . . . 6 . 9 . 4 . . . . 9 . . . 4 . . 13 . . . . 16 . 11 . . . . 2 2 . Terminals 72 | . 8 . 12 . . . 6 . 5 . 4 . . . . 5 . . . 4 . . 7 . . . . 11 . 7 . . . . 2 1 . Track 6 | . . . 1 . . . . . 1 . . . . . . . . . . . . . 1 . . . . 2 . 1 . . . . . . . Assimilate 18 | . 1 . . . . . 1 . 1 . 3 . . . . 2 . . . . . . 2 . . . . 4 . 2 . . . . 1 1 . Botnet 20 | . 1 . 2 . . . . . 2 . 1 . . . . 2 . . . 1 . . 3 . . . . 4 . 3 . . . . 1 . . Operators 7 | . 1 . 1 . . . . . 1 . . . . . . 1 . . . . . . 1 . . . . 1 . 1 . . . . . . . Skim 18 | . 5 . 8 . . . 5 . . . . . . . . . . . . . . . . . . . . . . . . . . . . . . Sabotage 3 | . . . . . . . . . . . . . . . . . . . . 3 . . . . . . . . . . . . . . . . . Fabricators 19 | . . . . . . . . . 3 . . . . . . 2 . . . . . . 5 . . . . 5 . 3 . . . . . 1 . Prioritize 7 | . . . . . . . . . . . . . . . . 1 . . . . . . 1 . . . . 1 . 3 . . . . . 1 . Haulers 1 | . . . . . . . . . . . . . . . . . . . . . . . . . . . . 1 . . . . . . . . . Recompile 11 | . . . . . . . . . 3 . . . . . . 1 . . . . . . 4 . . . . 3 . . . . . . . . . Repair Stations . | . . . . . . . . . . . . . . . . . . . . . . . . . . . . . . . . . . . . . . Recycling Units 8 | . 1 . 2 . . . . . 1 . . . . . . 2 . . . . . . 1 . . . . . . 1 . . . . . . . Reject 1 | . . . . . . . . . . . . . . . . 1 . . . . . . . . . . . . . . . . . . . . . Recyclers 4 | . . . . . . . . . 1 . . . . . . 1 . . . . . . 1 . . . . . . 1 . . . . . . . Tunnel 3 | . 1 . 2 . . . . . . . . . . . . . . . . . . . . . . . . . . . . . . . . . . Scanalyzers . | . . . . . . . . . . . . . . . . . . . . . . . . . . . . . . . . . . . . . . Garrison Access . | . . . . . . . . . . . . . . . . . . . . . . . . . . . . . . . . . . . . . . Data Cores Recovered . | . . . . . . . . . . . . . . . . . . . . . . . . . . . . . . . . . . . . . . Used . | . . . . . . . . . . . . . . . . . . . . . . . . . . . . . . . . . . . . . . Hacking Detections 117 | . 6 . 11 . . . 7 2 17 . 11 . . . . 13 2 . . 3 2 . 11 . . . . 13 . 8 . . . . 3 6 2 Full Trace Events 31 | . . . 2 . . . 1 1 6 . 5 . . . . 3 . . . . . . 1 . . . . 5 . 3 . . . . . 3 1 Feedback Events 7 | . . . . . . . . . 1 . 2 . . . . . . . . . . . . . . . . 3 . . . . . . . . 1 Corruption 2 | . . . . . . . . . . . 1 . . . . . . . . . . . . . . . . 1 . . . . . . . . . Hackware Fried 5 | . . . . . . . . . 1 . 1 . . . . . . . . . . . . . . . . 2 . . . . . . . . 1 Feedback Blocked . | . . . . . . . . . . . . . . . . . . . . . . . . . . . . . . . . . . . . . . Robot Schematics Acquired 4 | . . . . . . . . . . . . . . 4 . . . . . . . . . . . . . . . . . . . . . . . Robots Built . | . . . . . . . . . . . . . . . . . . . . . . . . . . . . . . . . . . . . . . Authchips . | . . . . . . . . . . . . . . . . . . . . . . . . . . . . . . . . . . . . . . Time . | . . . . . . . . . . . . . . . . . . . . . . . . . . . . . . . . . . . . . . Total Robot Build Rating . | . . . . . . . . . . . . . . . . . . . . . . . . . . . . . . . . . . . . . . Part Schematics Acquired 28 | . . . . . . . . . 1 . 1 . . 14 . 1 . . . . . . 3 . . . . 2 . 1 . . 4 . . 1 . Parts Built 21 | . . . . . . . . . 4 . 2 . . . . 3 . . . . . . 3 . . . . 2 . 6 . . . . . 1 . Authchips 9 | . . . . . . . . . 2 . . . . . . 1 . . . . . . 3 . . . . . . 3 . . . . . . . Time 1286 | . . . . . . . . . 176 . 78 . . . . 132 . . . . . . 122 . . . . 155 . 491 . . . . . 132 . Total Part Build Rating 123 | . . . . . . . . . 16 . 10 . . . . 18 . . . . . . 17 . . . . 14 . 42 . . . . . 6 . Part Studies Acquired 5 | . . . 2 . . . 1 . . . . . . . . . . . . . . . 1 . . . . . . . . . . . . 1 . Parts Repaired 19 | . 2 . 1 . . . . . . . 2 . . . . 2 . . . . 4 . 2 . . . . 1 . . . . . . 5 . . Time 763 | . 52 . 25 . . . . . . . 140 . . . . 48 . . . . 140 . 165 . . . . 44 . . . . . . 149 . . Parts Recycled 1 | . . . . . . . . . 1 . . . . . . . . . . . . . . . . . . . . . . . . . . . . Recycled Matter 104 | . . . . . . . . . 104 . . . . . . . . . . . . . . . . . . . . . . . . . . . . Retrieved Matter 104 | . . . . . . . . . 104 . . . . . . . . . . . . . . . . . . . . . . . . . . . . Retrieved Components 5 | . . . . . . . . . . . . . . . . . . . . . . . 2 . . . . . . 3 . . . . . . . Parts Scanalyzed . | . . . . . . . . . . . . . . . . . . . . . . . . . . . . . . . . . . . . . . Part Schematics Acquired . | . . . . . . . . . . . . . . . . . . . . . . . . . . . . . . . . . . . . . . Parts Damaged . | . . . . . . . . . . . . . . . . . . . . . . . . . . . . . . . . . . . . . . Bothacking | -11 -10 -10 -9 -9 -9 -8 -8 -8 -7 -7 -7 -7 -7 -7 -6 -6 -6 -6 -6 -6 -5 -5 -5 -5 -5 -5 -4 -4 -4 -4 -4 -4 -4 -3 -3 -2 -1 ------------ Run | Yrd Mat Min Mat Min Exi Min Mat Gar Fac Was Fac Low Low Zio Pro Fac Ext Cet Arc Hub Fac Was Fac Upp Upp War Pro Fac Was Fac Upp Upp Zhi Pro Res Res Acc Used RIF Installer . | . . . . . . . . . . . . . . . . . . . . . . . . . . . . . . . . . . . . . . Robots Hacked 7 | . . . . . . . . . 1 . . . . . . . . . . . . . . . . . . 1 . . . . . . . 5 . Non-combat 2 | . . . . . . . . . 1 . . . . . . . . . . . . . . . . . . 1 . . . . . . . . . Combat 5 | . . . . . . . . . . . . . . . . . . . . . . . . . . . . . . . . . . . . 5 . Robot Hacks Applied 7 | . . . . . . . . . 1 . . . . . . . . . . . . . . . . . . 1 . . . . . . . 5 . parse_system 5 | . . . . . . . . . . . . . . . . . . . . . . . . . . . . . . . . . . . . 5 . find_chute 2 | . . . . . . . . . 1 . . . . . . . . . . . . . . . . . . 1 . . . . . . . . . Relay Couplers Released 14 | . . . . . . . . 12 . . . . . . . . . . . . . . . . . . . . . . . . . . . 2 . Machine Destruction 14 | . . . . . . . . 12 . . . . . . . . . . . . . . . . . . . . . . . . . . . 2 . Fabnet Peak Effective % . | . . . . . . . . . . . . . . . . . . . . . . . . . . . . . . . . . . . . . . Robots Rewired 14 | . . . . . . . . . 1 . . . . . . . 12 . . . 1 . . . . . . . . . . . . . . . . Allies Hacked 1 | . . . . . . . . . . . . . . . . . . . . . . . . . . . . 1 . . . . . . . . . Hacks Repelled . | . . . . . . . . . . . . . . . . . . . . . . . . . . . . . . . . . . . . . . Allies | -11 -10 -10 -9 -9 -9 -8 -8 -8 -7 -7 -7 -7 -7 -7 -6 -6 -6 -6 -6 -6 -5 -5 -5 -5 -5 -5 -4 -4 -4 -4 -4 -4 -4 -3 -3 -2 -1 -------- Run | Yrd Mat Min Mat Min Exi Min Mat Gar Fac Was Fac Low Low Zio Pro Fac Ext Cet Arc Hub Fac Was Fac Upp Upp War Pro Fac Was Fac Upp Upp Zhi Pro Res Res Acc Total Allies 47 | . 1 5 . 1 . . 1 . 2 . 3 . . 5 . 2 16 . . . 1 . 1 . . . . 4 1 2 . . . . 1 1 . Largest Group 12 | . 1 6 5 1 . . 1 . 2 . 1 . . 5 4 2 12 2 . . 1 . 1 . . . . 2 1 1 . . . . 1 1 . Highest-Rated Group 469 | . 10 88 57 31 . . 10 . 60 . 26 . . 141 113 52 469 70 . . 49 . 26 . . . . 45 46 45 . . . . 26 45 . Highest-Rated Ally 159 | . 10 31 16 31 . . 10 . 34 . 26 . . 31 31 26 159 39 . . 49 . 26 . . . . 45 46 45 . . . . 26 45 . Initial Warlord ECA Mod 6 | . . . . . . . . . 6 6 6 6 6 6 5 5 5 5 5 5 4 4 4 4 4 4 3 3 3 3 3 3 3 2 2 1 . Total Orders 4 | . . . . . . . . . 1 . 2 . . . . 1 . . . . . . . . . . . . . . . . . . . . . STAY 3 | . . . . . . . . . 1 . 1 . . . . 1 . . . . . . . . . . . . . . . . . . . . . FOLLOW 1 | . . . . . . . . . . . 1 . . . . . . . . . . . . . . . . . . . . . . . . . . Ally Attacks 191 | . . 28 9 7 . . . . 4 . . . . . 29 . 99 10 . . 5 . . . . . . . . . . . . . . . . Total Damage 4488 | . . 287 59 84 . . . . 549 . . . . . 503 . 2581 212 . . 213 . . . . . . . . . . . . . . . . Kills 30 | . . 6 2 1 . . . . 6 . . . . . 1 . 13 . . . 1 . . . . . . . . . . . . . . . . Allies Corrupted . | . . . . . . . . . . . . . . . . . . . . . . . . . . . . . . . . . . . . . . Allies Melted . | . . . . . . . . . . . . . . . . . . . . . . . . . . . . . . . . . . . . . . Intel | -11 -10 -10 -9 -9 -9 -8 -8 -8 -7 -7 -7 -7 -7 -7 -6 -6 -6 -6 -6 -6 -5 -5 -5 -5 -5 -5 -4 -4 -4 -4 -4 -4 -4 -3 -3 -2 -1 ------- Run | Yrd Mat Min Mat Min Exi Min Mat Gar Fac Was Fac Low Low Zio Pro Fac Ext Cet Arc Hub Fac Was Fac Upp Upp War Pro Fac Was Fac Upp Upp Zhi Pro Res Res Acc Active Infowar (turns) 9303 | . . . . . . . 729 77 1861 20 915 93 77 373 381 1357 533 . . . 216 28 544 45 97 242 95 97 . 209 99 81 37 67 293 480 257 Optics 342 | . . . . . . . . . . . . . . . . . . . . . 155 28 159 . . . . . . . . . . . . . . Terrain 1523 | . . . . . . . . . . . . . . . . . . . . . . . . . . . . . . 209 99 81 37 67 293 480 257 Structural 2799 | . . . . . . . 729 77 . . . . . . . 1079 533 . . . . . 381 . . . . . . . . . . . . . . T.N.C. 460 | . . . . . . . . . . . . . . . . 460 . . . . . . . . . . . . . . . . . . . . . Machine Analysis 4358 | . . . . . . . . . 1861 20 915 93 77 373 381 638 . . . . . . . . . . . . . . . . . . . . . Cloaking 2341 | . . . . . . . . . . . . 13 39 35 5 18 . . . . 216 28 168 45 97 242 95 97 . . 89 72 37 67 253 479 246 Robot Analysis Total 9 | . 1 . 2 . . . . . . . . . . . . . . . . . . . 2 . . . . . . . . . 4 . . . . Derelict Logs Recovered 10 | . . 2 . 1 . . . . . . . 2 . 1 1 . . . . . . . . 1 1 . 1 . . . . . . . . . . Drone Launches . | . . . . . . . . . . . . . . . . . . . . . . . . . . . . . . . . . . . . . . Drone Recoveries . | . . . . . . . . . . . . . . . . . . . . . . . . . . . . . . . . . . . . . . Exploration | -11 -10 -10 -9 -9 -9 -8 -8 -8 -7 -7 -7 -7 -7 -7 -6 -6 -6 -6 -6 -6 -5 -5 -5 -5 -5 -5 -4 -4 -4 -4 -4 -4 -4 -3 -3 -2 -1 ------------- Run | Yrd Mat Min Mat Min Exi Min Mat Gar Fac Was Fac Low Low Zio Pro Fac Ext Cet Arc Hub Fac Was Fac Upp Upp War Pro Fac Was Fac Upp Upp Zhi Pro Res Res Acc Turns Passed 21814 | 56 1481 1195 2987 1181 333 66 2461 1309 1863 20 915 93 77 373 381 1560 621 63 37 102 264 28 1167 61 97 242 162 802 13 490 99 81 37 67 293 480 257 Spaces Moved 27877 | 33 776 554 1319 722 207 39 1125 533 2976 70 1584 244 203 873 698 2929 954 92 33 239 387 102 2484 228 405 754 559 2111 76 883 272 179 138 188 335 1812 761 Core 31 | 4 . . . . . . . . 3 . . . . . . 24 . . . . . . . . . . . . . . . . . . . . . Treads 5304 | 29 776 554 1319 722 207 39 1125 533 . . . . . . . . . . . . . . . . . . . . . . . . . . . . . Legs . | . . . . . . . . . . . . . . . . . . . . . . . . . . . . . . . . . . . . . . Wheels . | . . . . . . . . . . . . . . . . . . . . . . . . . . . . . . . . . . . . . . Hover . | . . . . . . . . . . . . . . . . . . . . . . . . . . . . . . . . . . . . . . Flight 22542 | . . . . . . . . . 2973 70 1584 244 203 873 698 2905 954 92 33 239 387 102 2484 228 405 754 559 2111 76 883 272 179 138 188 335 1812 761 Fastest Speed 6 | 50 160 160 160 160 160 160 160 200 26 14 14 26 14 26 26 20 17 17 26 26 26 26 12 24 24 18 18 18 6 18 18 18 18 18 6 17 6 Average Speed 52 | 146 160 206 166 160 160 160 183 200 26 23 25 26 25 26 26 25 24 24 26 27 26 26 26 24 24 23 20 18 16 18 18 18 18 22 16 17 14 Slowest Speed 250 | 160 240 240 240 160 160 160 200 200 106 26 26 26 26 26 26 250 26 26 26 29 29 26 105 24 24 91 22 91 18 87 18 18 18 87 17 87 85 Overloaded Moves 108 | . . . . . . . . . . 15 11 . 6 . . 6 19 9 . . . . 21 . . . . . 7 . . . . . 9 . 5 Propulsion Burnouts . | . . . . . . . . . . . . . . . . . . . . . . . . . . . . . . . . . . . . . . Robots Hopped 117 | . . . . . . . . . 17 . 12 . . . . 9 9 3 . 1 4 . 14 . . . 2 30 2 6 . . . . 2 3 3 Potential Cave-ins . | . . . . . . . . . . . . . . . . . . . . . . . . . . . . . . . . . . . . . . Cave-ins Triggered . | . . . . . . . . . . . . . . . . . . . . . . . . . . . . . . . . . . . . . . Exploration Rate (%) 57 | 3 98 93 96 100 59 21 66 66 62 77 43 50 41 85 79 53 84 54 49 25 14 81 71 44 67 85 78 60 81 13 48 40 60 47 7 44 28 Regions Visited 37 Branch Regions 20 Pre-discovered Areas 18 | . 1 1 5 . 1 . 1 . . . . 2 . 2 . . . . . . . . . 1 1 . . . . . . . 3 . . . . Known Exits Taken 11 | . . 1 . . . 1 1 . . . 1 . . . . 1 . . . 1 . . 1 . . . . . . 1 . . . 1 1 1 . Unknown Exits Taken 19 | 1 1 . 1 1 1 . . . . . . 1 1 1 1 . 1 1 1 . . . . 1 1 1 1 . . . 1 1 1 . . . . Scrap Searched 19 | . . 2 . 1 . . . . . . . . 1 4 1 . . . . . . . . . 3 . 3 . . . 2 1 . 1 . . . Spaces Dug 152 | . . . . . . . . . 16 . 6 . . . 3 17 2 . 2 2 . . 33 . . . 3 21 . 22 1 2 . . . 8 14 Terrain Destroyed 964 | . 53 . 90 20 . . 24 15 93 . 6 12 . . 129 81 2 . 2 149 44 . 86 . . 1 3 53 . 23 1 2 . . 51 8 16 Melee 142 | . . . . . . . . . 10 . 6 . . . 3 17 2 . 2 2 . . 30 . . . 3 21 . 21 1 2 . . . 8 14 Projectile 26 | . . . . . . . . . 15 . . . . . . . . . . . . . 6 . . 1 . . . 2 . . . . . . 2 AOE 796 | . 53 . 90 20 . . 24 15 68 . . 12 . . 126 64 . . . 147 44 . 50 . . . . 32 . . . . . . 51 . . Terrain Rammed . | . . . . . . . . . . . . . . . . . . . . . . . . . . . . . . . . . . . . . . Walls Destroyed . | . . . . . . . . . . . . . . . . . . . . . . . . . . . . . . . . . . . . . . Machines Disabled . | . . . . . . . . . . . . . . . . . . . . . . . . . . . . . . . . . . . . . . Actions | -11 -10 -10 -9 -9 -9 -8 -8 -8 -7 -7 -7 -7 -7 -7 -6 -6 -6 -6 -6 -6 -5 -5 -5 -5 -5 -5 -4 -4 -4 -4 -4 -4 -4 -3 -3 -2 -1 --------- Run | Yrd Mat Min Mat Min Exi Min Mat Gar Fac Was Fac Low Low Zio Pro Fac Ext Cet Arc Hub Fac Was Fac Upp Upp War Pro Fac Was Fac Upp Upp Zhi Pro Res Res Acc Total 33904 | 38 938 582 1919 737 208 43 1405 678 3964 72 2054 269 227 1013 875 3607 1319 128 45 267 535 102 2887 232 404 815 598 2429 73 1166 319 223 149 210 548 1951 875 Wait 4546 | . 100 8 402 2 . 5 131 48 755 3 396 19 25 130 162 508 313 40 3 19 130 . 291 . . 43 32 260 . 242 46 43 1 18 188 98 85 Move 27624 | 32 775 553 1318 721 206 38 1125 532 2942 69 1562 243 202 872 697 2911 937 86 32 236 379 101 2456 227 404 753 554 2056 72 870 271 178 137 187 330 1806 754 Hop 102 | . . . . . . . . . 17 . 9 . . . . 8 7 2 . 1 4 . 13 . . . 2 25 1 6 . . . . 2 2 3 Pick Up 103 | 1 6 1 19 . 1 . 16 3 14 . 3 1 . 1 . 8 . . . . 3 . 8 . . 1 1 4 . 4 . . 2 1 1 2 2 Fast Attach 121 | 4 9 . 8 . . . 3 . 15 . 5 . . 2 . 15 1 . . 1 4 1 19 1 . 5 1 10 . 3 . . 3 1 3 6 1 Attach 65 | . . . 3 . . . 2 3 9 . 3 1 . . . 9 2 . . 1 2 . 7 2 . . 1 6 . 3 . . 2 1 4 1 3 Detach 42 | . . . 2 . . . 3 . 4 . 3 . . 1 . 5 1 . . 2 2 . 5 1 . 2 1 4 . 2 . . . . 1 3 . Swap 155 | . 9 2 21 2 1 . 16 10 10 . 7 2 . . 5 25 . . . 2 . . 6 . . 5 2 7 . 4 1 . . . 8 7 3 Drop 119 | . 1 . 24 1 . . 15 3 17 . 3 1 . 3 . 11 1 . . . 2 . 7 . . 5 1 8 . 5 . . 4 1 1 3 2 Fire 407 | . 34 6 109 9 . . 89 73 45 . . 2 . . 5 5 . . . 1 1 . 11 . . 1 . 3 . 2 . . . . 4 . 7 Melee 297 | . . . . . . . . . 13 . 13 . . 4 6 68 9 . 10 2 6 . 49 1 . . 3 40 . 25 1 2 . 1 6 23 15 Ram 1 | . . . . . . . . . . . 1 . . . . . . . . . . . . . . . . . . . . . . . . . . Kick . | . . . . . . . . . . . . . . . . . . . . . . . . . . . . . . . . . . . . . . Crush 36 | 1 4 11 13 2 . . 5 . . . . . . . . . . . . . . . . . . . . . . . . . . . . . . Escape Stasis 52 | . . . . . . . . 6 15 . . . . . . . 16 . . . . . 15 . . . . . . . . . . . . . . Rewire 35 | . . 1 . . . . . . . . . . . . . . 32 . . . 2 . . . . . . . . . . . . . . . . Trap 199 | . . . . . . . . . 108 . 49 . . . . 34 . . . 2 . . . . . . . 6 . . . . . . . . . Miscellaneous . | . . . . . . . . . . . . . . . . . . . . . . . . . . . . . . . . . . . . . . Route ------- -11/Scrapyard -10/Materials (discovered 5 exits: *Mat x3 / [*Min] / *Sub) -10/Mines (discovered 3 exits: *Mat x2 / Sub) -9/Materials (discovered 4 exits: *Mat x3 / [*Min]) -9/Mines (discovered 3 exits: *Mat x2 / *Exi) -9/Exiles (discovered 2 exits: [*Min x2]) -8/Mines -8/Materials (discovered 4 exits: *Fac / *Sto x2 / Gar) -8/Garrison (discovered 3 exits: *Fac x3) -7/Factory (discovered 3 exits: *Fac x2 / *Low) -7/Waste -7/Factory (discovered 2 exits: *Low x2) -7/Lower Caves -7/Lower Caves -7/Zion -6/Proximity Caves -6/Factory (discovered 8 exits: *Fac x4 / *Low x2 / *Ext x2) -6/Extension (discovered 2 exits: *Fac / [*Cet]) -6/Cetus -6/Archives -6/Hub_04(d) -5/Factory -5/Waste -5/Factory (discovered 5 exits: *Fac x3 / *Upp x2) -5/Upper Caves -5/Upper Caves (discovered 2 exits: *Fac / *War) -5/Warlord -4/Proximity Caves -4/Factory (discovered 5 exits: *Res x3 / *Upp x2) -4/Waste -4/Factory (discovered 5 exits: Res x4 / *Upp) -4/Upper Caves -4/Upper Caves -4/Zhirov -3/Proximity Caves -3/Research (discovered 6 exits: *Res x3 / Arm / Qua x2) -2/Research (discovered 4 exits: *Acc x3 / [Tes]) -1/Access (discovered 2 exits: *Sur / Com) To Epsilon Eridani History --------- Turn | Location | Event 3 | -11/Scrapyard | Discovered new exit (range 15) 57 | -11/Scrapyard | Entered Materials 58 | -10/Materials | Met a group of wandering Federalists 222 | -10/Materials | Discovered new exit (range 11) 228 | -10/Materials | Discovered new exit (range 10) 304 | -10/Materials | Build established: Mutant 415 | -10/Materials | Discovered new exit (range 13) 613 | -10/Materials | Discovered new exit (range 15) 963 | -10/Materials | Learned location of 2 exits from Subcaves 1002 | -10/Materials | Learned location of 2 exits from Mines 1032 | -10/Materials | Loaded intel: 2 recycling unit locations 1071 | -10/Materials | Identified exit to Materials 1121 | -10/Materials | Learned 4 Subcaves zone layouts 1347 | -10/Materials | Repaired Lgt. Treads 1374 | -10/Materials | Repaired Lgt. Treads 1538 | -10/Materials | Entered Mines 1538 | -10/Mines | Accompanied by 1 ally 1539 | -10/Mines | Identified exit to Subcaves 1556 | -10/Mines | Met a Derelict bent on vengeance 1575 | -10/Mines | Assembled infested the area 1580 | -10/Mines | Assisted by a Guerilla fighting off Assembled 1780 | -10/Mines | Assisted by bots powering up and referring to "LRC-V3" 2014 | -10/Mines | Discovered exit to Materials (range 7) 2073 | -10/Mines | Build established: Commander-Mutant 2176 | -10/Mines | Learned location of Storage (-8) 2733 | -10/Mines | Entered Materials 2733 | -9/Materials | Accompanied by 5 allies 2733 | -9/Materials | Evolved 2 slots: Propulsion x1, Utility x1 3052 | -9/Materials | Lost 3 allies 3367 | -9/Materials | Discovered new exit (range 15) 3569 | -9/Materials | Build established: Scavenger-Mutant 3602 | -9/Materials | Discovered new exit (range 7) 3933 | -9/Materials | First assault squad dispatched 4231 | -9/Materials | Discovered new exit (range 12) 4400 | -9/Materials | Discovered new exit (range 6) 4636 | -9/Materials | Learned Storage non-interactive machine intel 4673 | -9/Materials | Learned Storage security intel 4723 | -9/Materials | Learned Storage security intel 4736 | -9/Materials | Learned location of Zion (-7) 4749 | -9/Materials | Learned location of 1 exit from Recycling 4807 | -9/Materials | Learned Storage terminal intel 5150 | -9/Materials | Repaired Remote Shield 5606 | -9/Materials | Sterilization system engaged 5606 | -9/Materials | Non-combat units ordered to evacuate 5706 | -9/Materials | Combat units ordered to evacuate 5720 | -9/Materials | Entered Mines 5721 | -9/Mines | Identified exit to Materials 5774 | -9/Mines | Met a Derelict testing a Signal Generator 6013 | -9/Mines | Learned Materials terminal intel 6218 | -9/Mines | Deemed a non-threat by the Exiles lab entrance 6218 | -9/Mines | Discovered new exit (range 5) 6901 | -9/Mines | Entered Exiles 6927 | -9/Exiles | Discovered new exit (range 15) 6943 | -9/Exiles | Met 8R-AWN 6969 | -9/Exiles | Met EX-HEX 7012 | -9/Exiles | Met EX-BIN 7034 | -9/Exiles | Aligned with FarCom system 7036 | -9/Exiles | Given EX-Vault access code 7076 | -9/Exiles | Opened EX-Vault 7085 | -9/Exiles | Found Cloak of Protection 7117 | -9/Exiles | Warned to stay clear of 0b10 Research branches 7142 | -9/Exiles | Exiles lab attacked by MAIN.C 7221 | -9/Exiles | Discovered new exit (range 10) 7234 | -9/Exiles | Left Exiles lab with Cloak of Protection 7234 | -9/Exiles | Entered Mines 7279 | -8/Mines | Discovered exit to Materials (range 10) 7300 | -8/Mines | Entered Materials 7300 | -8/Materials | Evolved 2 slots: Propulsion x1, Utility x1 7301 | -8/Materials | Identified exit to Storage 7302 | -8/Materials | Loaded intel: 12 terminal locations 7413 | -8/Materials | Garrison activated, responded to threat 7818 | -8/Materials | Central database locked down 7911 | -8/Materials | Garrison activated, responded to threat 8444 | -8/Materials | Discovered new exit (range 16) 8517 | -8/Materials | Learned 2 Storage zone layouts 8587 | -8/Materials | Learned Factory scanalyzer intel 8647 | -8/Materials | Learned 2 Storage zone layouts 8699 | -8/Materials | Learned Factory trap positions 8743 | -8/Materials | Learned location of 1 exit from Extension 8799 | -8/Materials | Learned 2 Lower Caves zone layouts 9761 | -8/Materials | Identified exit to Garrison 9761 | -8/Materials | Entered Garrison 9825 | -8/Garrison | Triggered checkpoint 9977 | -8/Garrison | Triggered checkpoint 9984 | -8/Garrison | Triggered checkpoint 10046 | -8/Garrison | Triggered checkpoint 10154 | -8/Garrison | Triggered checkpoint 10267 | -8/Garrison | Garrison Relay disabled 10356 | -8/Garrison | Discovered new exit (range 13) 10474 | -8/Garrison | Discovered new exit (range 10) 10513 | -8/Garrison | Triggered checkpoint 10575 | -8/Garrison | Garrison Relay disabled 10809 | -8/Garrison | Triggered checkpoint 10838 | -8/Garrison | Garrison Relay disabled 10958 | -8/Garrison | Discovered new exit (range 12) 11070 | -8/Garrison | Entered Factory 11070 | -7/Factory | Evolved 2 slots: Utility x2 11070 | -7/Factory | Released all parts (11) 11071 | -7/Factory | Loaded intel: 110 trap records 11072 | -7/Factory | Loaded intel: 4 scanalyzer locations 11383 | -7/Factory | Build established: Hacker-Sprinter 11473 | -7/Factory | Discovered new exit (range 6) 12065 | -7/Factory | Fabricated Cld. VTOL Module (x1) 12112 | -7/Factory | Fabricated Cld. VTOL Module (x1) 12157 | -7/Factory | Fabricated Cld. VTOL Module? 12223 | -7/Factory | Hacking Suite fried by hacking feedback 12304 | -7/Factory | Discovered new exit (range 14) 12564 | -7/Factory | Fabricated Cld. VTOL Module (x1) 12881 | -7/Factory | Discovered new exit (range 7) 12933 | -7/Factory | Manually triggered Chute Trap 12933 | -7/Factory | Sucked down chute 12933 | -7/Factory | Entered Waste 12936 | -7/Waste | Spotted C-40 Crusher 12939 | -7/Waste | Spotted C-40 Crusher 12939 | -7/Waste | Spotted C-40 Crusher 12940 | -7/Waste | Spotted C-40 Crusher 12945 | -7/Waste | Discovered new exit (range 10) 12945 | -7/Waste | Spotted C-40 Crusher 12948 | -7/Waste | EMP discharged 12953 | -7/Waste | Entered Factory 12977 | -7/Factory | Identified exit to Lower Caves 13070 | -7/Factory | Fabricated Imp. Hacking Suite (x1) 13175 | -7/Factory | Hacking Suite fried by hacking feedback 13357 | -7/Factory | Fabricated Imp. Hacking Suite (x1) 13640 | -7/Factory | Repaired Cld. VTOL Module 13861 | -7/Factory | Repaired Cld. VTOL Module 13868 | -7/Factory | Entered Lower Caves 13874 | -7/Lower Caves | Met a Warlord Commander 13875 | -7/Lower Caves | Learned location of Warlord (-5) 13876 | -7/Lower Caves | Warlord Commander delivered Encrypted Comm Array 13945 | -7/Lower Caves | Learned 4 Factory zone layouts 13945 | -7/Lower Caves | Discovered new exit (range 6) 13961 | -7/Lower Caves | Entered another Lower Caves area 14033 | -7/Lower Caves | Discovered new exit (range 6) 14038 | -7/Lower Caves | Entered Zion 14050 | -7/Zion | Discovered new exit (range 16) 14112 | -7/Zion | Gained Derelict followers 14126 | -7/Zion | Learned location of Data Miner (-6) 14142 | -7/Zion | Found Prototype Launcher 14142 | -7/Zion | Identified Rocket Array 14214 | -7/Zion | Rebuked by Imprinter 14411 | -7/Zion | Entered Proximity Caves 14411 | -6/Proximity Caves | Accompanied by 5 allies 14539 | -6/Proximity Caves | Lost 3 allies 14596 | -6/Proximity Caves | Spotted B-75 Beast 14632 | -6/Proximity Caves | Learned Factory security intel 14763 | -6/Proximity Caves | Attracted the attention of an 0b10 checkpoint 14779 | -6/Proximity Caves | Discovered new exit (range 7) 14792 | -6/Proximity Caves | Entered Factory 14792 | -6/Factory | Evolved 2 slots: Propulsion x1, Utility x1 14826 | -6/Factory | Garrison activated, responded to threat 14844 | -6/Factory | Identified exit to Lower Caves 14844 | -6/Factory | Identified exit to Extension 15005 | -6/Factory | Discovered new exit (range 15) 15065 | -6/Factory | Central database locked down 15228 | -6/Factory | Fabricated Adv. Hacking Suite (x1) 15287 | -6/Factory | Build established: Hacker-Scout 15320 | -6/Factory | Identified exit to Factory 15729 | -6/Factory | Spotted B-75 Beast 15786 | -6/Factory | Garrison activated, responded to threat 15851 | -6/Factory | Cargo convoy interrupted 15970 | -6/Factory | Repaired Lgt. Angular Momentum Engine 16140 | -6/Factory | Build established: Hacker-Sprinter 16255 | -6/Factory | Fabricated Adv. Hacking Suite (x1) 16282 | -6/Factory | Fabricated Adv. Hacking Suite (x1) 16333 | -6/Factory | Repaired Cld. VTOL Module 16352 | -6/Factory | Entered Extension 16379 | -6/Extension | Rescued A7 16451 | -6/Extension | Rescued a captive Derelict 16484 | -6/Extension | Unchained authorized (CL-0N3) 16594 | -6/Extension | U-05 Engineer reconstituted as H-81 Overseer 16617 | -6/Extension | H-81 Overseer reconstituted as CL-0N3 16644 | -6/Extension | Lost 7 allies 16828 | -6/Extension | Build established: Wizard-Sprinter 16848 | -6/Extension | Spotted B-75 Beast 16867 | -6/Extension | Spotted B-75 Beast 16877 | -6/Extension | Allies destroyed A7 16880 | -6/Extension | Extracted ID and sensor layout for unrecognized location from A7's data core 16904 | -6/Extension | Discovered new exit (range 15) 16913 | -6/Extension | Lost 3 allies 16917 | -6/Extension | Rescued a captive Derelict 16923 | -6/Extension | Rescued a captive Derelict 16973 | -6/Extension | Entered Cetus 16973 | -6/Cetus | Accompanied by 2 allies 17003 | -6/Cetus | Spotted Cetus Guard 17003 | -6/Cetus | Spotted Cetus Guard 17004 | -6/Cetus | Spotted Cetus Guard 17005 | -6/Cetus | Spotted Cetus Guard 17017 | -6/Cetus | Discovered new exit (range 16) 17036 | -6/Cetus | Entered Archives 17070 | -6/Archives | Discovered new exit (range 13) 17073 | -6/Archives | Entered Hub_04(d) 17083 | -6/Hub_04(d) | Discovered exit to Factory (range 3) 17129 | -6/Hub_04(d) | Network Hub disabled 17150 | -6/Hub_04(d) | Network Hub disabled 17175 | -6/Hub_04(d) | Entered Factory 17175 | -5/Factory | Evolved 2 slots: Power x1, Propulsion x1 17216 | -5/Factory | Discovered new exit (range 12) 17244 | -5/Factory | Repaired Cld. VTOL Module 17274 | -5/Factory | Repaired Rocket Array 17373 | -5/Factory | Repaired Phasing Sabre 17412 | -5/Factory | Repaired Hrd. Medium Armor Plating 17439 | -5/Factory | Sucked down chute 17439 | -5/Factory | Entered Waste 17447 | -5/Waste | Spotted C-40 Crusher 17451 | -5/Waste | Spotted C-40 Crusher 17462 | -5/Waste | Spotted C-40 Crusher 17462 | -5/Waste | Spotted C-40 Crusher 17462 | -5/Waste | Spotted C-40 Crusher 17465 | -5/Waste | Discovered new exit (range 10) 17467 | -5/Waste | Entered Factory 17570 | -5/Factory | Repaired Broken Q-thruster 17583 | -5/Factory | Discovered new exit (range 13) 17619 | -5/Factory | Spotted B-75 Beast 17662 | -5/Factory | Unchained authorized (CL-0N3) 17784 | -5/Factory | U-05 Engineer reconstituted as Immortal 17784 | -5/Factory | Spotted Immortal 17810 | -5/Factory | Identified exit to Upper Caves 17992 | -5/Factory | Discovered new exit (range 5) 18080 | -5/Factory | Y-64 Sentinel reconstituted as Executioner 18080 | -5/Factory | Spotted Executioner 18124 | -5/Factory | Lost 11 parts (2p4n4u1w) 18244 | -5/Factory | Repaired Cld. VTOL Module 18367 | -5/Factory | Search patrols dispatched 18398 | -5/Factory | Discovered new exit (range 8) 18442 | -5/Factory | Fabricated Exp. Utility Shielding? 18535 | -5/Factory | Build established: Hacker-Sprinter 18554 | -5/Factory | Fabricated Cld. Nuclear Pulse Thruster (x1) 18597 | -5/Factory | Fabricated Cld. Nuclear Pulse Thruster? 18597 | -5/Factory | Core integrity fell below 50% 18634 | -5/Factory | Entered Upper Caves 18659 | -5/Upper Caves | Learned location of Armory (-3) 18692 | -5/Upper Caves | Discovered new exit (range 14) 18695 | -5/Upper Caves | Entered another Upper Caves area 18717 | -5/Upper Caves | Discovered new exit (range 15) 18789 | -5/Upper Caves | Discovered new exit (range 14) 18792 | -5/Upper Caves | Entered Warlord 18802 | -5/Warlord | System corruption cleaned by Quarantine Array 18902 | -5/Warlord | Met Warlord 18920 | -5/Warlord | Warlord's base attacked by MAIN.C 18928 | -5/Warlord | Found Prototype Energy Cannon 18929 | -5/Warlord | Identified Vortex Driver 18965 | -5/Warlord | Found Prototype Device 18965 | -5/Warlord | Identified Exp. Focal Shield 18968 | -5/Warlord | Found Prototype Processor 18968 | -5/Warlord | Identified Exp. Core Analyzer 19028 | -5/Warlord | Opened side exit 19032 | -5/Warlord | Discovered new exit (range 10) 19034 | -5/Warlord | Entered Proximity Caves 19051 | -4/Proximity Caves | Found DCF Scrap (13 items) 19094 | -4/Proximity Caves | Learned Research emergency access door positions 19189 | -4/Proximity Caves | Spotted B-86 Titan 19194 | -4/Proximity Caves | Discovered new exit (range 14) 19196 | -4/Proximity Caves | Entered Factory 19196 | -4/Factory | Evolved 2 slots: Utility x2 19311 | -4/Factory | Fabricated Exp. Hacking Suite (x1) 19403 | -4/Factory | Adv. Hacking Suite fried by hacking feedback 19536 | -4/Factory | Destroyed 10 combat bots 19557 | -4/Factory | Fabricated Exp. Hacking Suite? 19609 | -4/Factory | Spotted B-86 Titan 19636 | -4/Factory | Discovered new exit (range 16) 19696 | -4/Factory | First assault squad dispatched 19701 | -4/Factory | Discovered new exit (range 4) 19842 | -4/Factory | Repaired Imp. Medium Armor Plating? 19872 | -4/Factory | Discovered new exit (range 16) 19875 | -4/Factory | Discovered new exit (range 4) 19931 | -4/Factory | Discovered new exit (range 16) 19932 | -4/Factory | Identified exit to Upper Caves 19935 | -4/Factory | Imp. System Shield fried by hacking feedback 19998 | -4/Factory | Manually triggered Chute Trap 19998 | -4/Factory | Sucked down chute 19998 | -4/Factory | Entered Waste 19999 | -4/Waste | Met a frightened Derelict 20001 | -4/Waste | Spotted C-40 Crusher 20003 | -4/Waste | Spotted C-40 Crusher 20003 | -4/Waste | Spotted C-40 Crusher 20005 | -4/Waste | Spotted C-40 Crusher 20008 | -4/Waste | Spotted C-40 Crusher 20010 | -4/Waste | Discovered new exit (range 10) 20011 | -4/Waste | Entered Factory 20013 | -4/Factory | Identified exit to Research 20024 | -4/Factory | Discovered exit to Upper Caves (range 8) 20106 | -4/Factory | Found Imp. Powered Armor 20153 | -4/Factory | Fabricated Exp. Utility Shielding? 20175 | -4/Factory | Unchained authorized (GL-D0S) 20181 | -4/Factory | Fabricated Exp. Terrain Scanner (x1) 20271 | -4/Factory | Fabricated Graviton Reactor? 20275 | -4/Factory | Fabricated Exp. Terrain Scan Processor (x1) 20311 | -4/Factory | Central database locked down 20396 | -4/Factory | Fabricated Cld. Nuclear Pulse Thruster (x1) 20449 | -4/Factory | Fabricated Graviton Reactor (x1) 20468 | -4/Factory | Spotted B-86 Titan 20501 | -4/Factory | Entered Upper Caves 20503 | -4/Upper Caves | Encountered a Warlord checkpoint 20600 | -4/Upper Caves | Discovered new exit (range 5) 20600 | -4/Upper Caves | Entered another Upper Caves area 20610 | -4/Upper Caves | Encountered a Warlord checkpoint 20647 | -4/Upper Caves | Discovered new exit (range 23) 20681 | -4/Upper Caves | Entered Zhirov 20681 | -4/Zhirov | Discovered new exit (range 3) 20685 | -4/Zhirov | Met Zhirov 20689 | -4/Zhirov | Learned location of Quarantine (-3) 20689 | -4/Zhirov | Learned location of Testing (-2) 20689 | -4/Zhirov | Learned location of Command (-1) 20690 | -4/Zhirov | Zhirov requested help retrieving the SGEMP Prototype 20693 | -4/Zhirov | Found Alien Artifact 20693 | -4/Zhirov | Identified Integrated Dissipator 20693 | -4/Zhirov | Installed Integrated Dissipator, increased core heat dissipation (+20) 20708 | -4/Zhirov | Found Alien Artifact 20718 | -4/Zhirov | Entered Proximity Caves 20733 | -3/Proximity Caves | Spotter reported a threat 20734 | -3/Proximity Caves | Spotter reported a threat 20739 | -3/Proximity Caves | Spotted B-86 Titan 20769 | -3/Proximity Caves | Discovered exit to Research (range 14) 20785 | -3/Proximity Caves | Entered Research 20785 | -3/Research | Evolved 2 slots: Propulsion x2 20793 | -3/Research | Identified exit to Armory 20793 | -3/Research | Identified exit to Quarantine 20793 | -3/Research | Identified exit to Research 20923 | -3/Research | Repaired Cld. Nuclear Pulse Thruster 20959 | -3/Research | Repaired Exp. Utility Shielding 20989 | -3/Research | Repaired Cld. Nuclear Pulse Thruster? 21034 | -3/Research | Repaired Cld. Nuclear Pulse Thruster 21072 | -3/Research | Repaired Graviton Reactor 21078 | -3/Research | Entered another Research area 21078 | -2/Research | Warlord forces began assault on 0b10 21078 | -2/Research | Evolved 2 slots: Utility x2 21082 | -2/Research | Identified exit to Access 21100 | -2/Research | Build established: Wizard-Ninja 21103 | -2/Research | Distinguished unit "Grunt Murderers" dispatched to help 21139 | -2/Research | Central database locked down 21144 | -2/Research | Fabricated Cld. Nuclear Pulse Thruster? 21157 | -2/Research | Lost 5 allies 21181 | -2/Research | Met up with Warlord 21188 | -2/Research | Research machine network offline 21242 | -2/Research | Lost 8 allies 21280 | -2/Research | Discovered new exit (range 25) 21288 | -2/Research | Met DD-05H 21351 | -2/Research | Spotted B-90 Cyclops 21363 | -2/Research | Spotted B-90 Cyclops 21558 | -2/Research | Entered Access 21558 | -1/Access | Evolved 2 slots: Propulsion x1, Utility x1 21605 | -1/Access | Found Gamma Bomb Array 21665 | -1/Access | Identified exit to Command 21665 | -1/Access | Adv. Hacking Suite fried by hacking feedback 21757 | -1/Access | Identified exit to Surface 21776 | -1/Access | Spotted B-99 Colossus 21776 | -1/Access | Spotted B-99 Colossus 21815 | *** | Escaped! Last Messages --------------- 21798_ Knocked back. 21798_ Slug penetrates B-99 Colossus. 21798_ Slug penetrates Wall. 21798_ Penetrated by Slug. 21798_ Slug penetrates Wall. 21800_ Slug penetrates Sealed Heavy Doors. 21800_ Penetrated by Slug. 21800_ Slug penetrates Sealed Heavy Doors. 21801_ Acquired 7 matter. 21801_ Slug penetrates Reinforced Barrier. 21802_ Sealed Heavy Doors breached. 21803_ Penetrated by Slug. 21803_ Slug penetrates Reinforced Barrier. 21803_ Penetrated by Slug. 21803_ Slug penetrates Reinforced Barrier. 21804_ Acquired 7 matter. 21805_ Slug penetrates Reinforced Barrier. 21807_ Slug penetrates Sealed Heavy Doors. 21811_ Main Access Shell breached. 21812_ Slug penetrates Sealed Heavy Doors. Map ----- +----------------------------------------------------+ | ?????????#################???##################### | | ????????##?#############?#####?################### | | ???????? ?? #########?#######?##################?# | | ??????? ? ######?#####?######################### | | ?????? ? #######?###?#############?#######??### | | ????""?? ? ###################?##?############### | | ????""?? ###?#####?######################?##### | | ??#? "? ###################################### | | ????? ? #?##?#?############################### | | ?????? ? ?#??################################## | | ????###+##########?######?################# | | ??? ? ? ##?###?####################### | | ????? #?############################ | | ?#?#+##+### ?############################## | | ? ? ##??##?########################### | | ??# ? ##???############################# | | ??# ? ##w #?###?######################## " | | #? ? ??# ?#?####?###################### | | ? # ? ## ??###?######################### | | ?? ?# ?######"###################### | | ?#? ? ??? """T"?"" """ ## | | ????? ? ?? "?"?"""" "" " ## | | ? ? ? ## " """""" "" % "######## | | #?# ? ?# ? " " """" % | | ### ## " " "" " """" % | | #?# ? ## " " @" " """" BB | | ??? ?## " " " """" BB | | ?????###?#? " """""" """"BB #"#+##### | | #?###?#####?? " """"BB # ]! | | ?? ? ?#?#? " """" # ! | | ?? ?? ?### #######"##################### | | ? ? ?### ?############################# * | | ? ? ? ##?# ############################# | | ??######### ############################# "" "" | | ??? ? ? ?# ############################# ""T"" | | ??? ? # ########?#################### """ | | ?? # ##################################"## | | ?? ? ?? # ############################# | | ?? # # ########### | | ?"?"? # # ########### " | | ""??"?"" # # ########### """ | | ??"??""" ?# ? ########### "" | | ?""?"" + + ########### " | | ? ??? ? # # ########### | | ? ? ? ? # # ########### | | ?###+?##### ###############+####################+ | | ?##??##?# ! | | ? ? ? ? | | ? ??? ? | | ????????## ##########+##############+####+##### | +----------------------------------------------------+ Best States ------------- Heat Dissipation 74 Energy Generation 53 Energy Capacity 580 Matter Stores 300 Matter Capacity 300 Sight Range 22 Terrain Scan Range 30 Terrain Scan Density 1010 Cloak Strength 5 Additional Mass Support 9 Armor Coverage 450 Utility Shielding 90 Weapon Cycling 15 Phase Shifting 15 Evasion (%) 77 Recoil Reduction 4 Offensive Hacking 100 Defensive Hacking 12 Authchip Count 3 Trap Extractor Capacity 6 Item Schematics ----------------- Cld. VTOL Module | -7/Factory | Hacked Imp. Hacking Suite | -7/Factory | Hacked Imp. Actuator Array | -7/Zion | Archive Imp. Trap Extractor | -7/Zion | Archive Hvy. Phase Cannon | -7/Zion | Archive Adv. ECM Suite | -7/Zion | Archive Coil Gun | -7/Zion | Archive Adv. Terrain Scan Processor | -7/Zion | Archive Plasma Rifle | -7/Zion | Archive IFF Parser | -7/Zion | Archive Matter Filter | -7/Zion | Archive KE Penetrator | -7/Zion | Archive Flexi-carbon Leg | -7/Zion | Archive Transmission Jammer | -7/Zion | Archive Armor Integrity Analyzer | -7/Zion | Archive Lgt. Angular Momentum Engine | -7/Zion | Archive Adv. Hacking Suite | -6/Factory | Hacked Exp. Utility Shielding | -5/Factory | Hacked Exp. Hacking Suite | -5/Factory | Hacked Cld. Nuclear Pulse Thruster | -5/Factory | Hacked Exp. Terrain Scanner | -4/Factory | Hacked Exp. Terrain Scan Processor | -4/Factory | Hacked Graviton Reactor | -4/Factory | Hacked Assault Drone Bay | -4/Zhirov | Free Exp. Heat Sink | -4/Zhirov | Free Exp. Optical Array | -4/Zhirov | Free Imp. Arc Thrower | -4/Zhirov | Free Gravity Neutralizer | -2/Research | Hacked Robot Schematics ------------------ L-61 Swordsman | -7/Zion | Archive K-01 Serf | -7/Zion | Archive R-06 Scavenger | -7/Zion | Archive X-57 Shotgunner | -7/Zion | Archive Fabricated ------------ Cld. VTOL Module | x1 | -7/Factory | Authchip Cld. VTOL Module | x1 | -7/Factory | Authchip Cld. VTOL Module | x1 | -7/Factory Cld. VTOL Module | x1 | -7/Factory Imp. Hacking Suite | x1 | -7/Factory Imp. Hacking Suite | x1 | -7/Factory Adv. Hacking Suite | x1 | -6/Factory Adv. Hacking Suite | x1 | -6/Factory | Authchip Adv. Hacking Suite | x1 | -6/Factory Exp. Utility Shielding | x1 | -5/Factory | Authchip Cld. Nuclear Pulse Thruster | x1 | -5/Factory | Authchip Cld. Nuclear Pulse Thruster | x1 | -5/Factory | Authchip Exp. Hacking Suite | x1 | -4/Factory Exp. Hacking Suite | x1 | -4/Factory Exp. Utility Shielding | x1 | -4/Factory | Authchip Exp. Terrain Scanner | x1 | -4/Factory | Authchip Graviton Reactor | x1 | -4/Factory Exp. Terrain Scan Processor | x1 | -4/Factory | Authchip Cld. Nuclear Pulse Thruster | x1 | -4/Factory Graviton Reactor | x1 | -4/Factory Cld. Nuclear Pulse Thruster | x1 | -2/Research Repaired ---------- Lgt. Treads | 14% | -10/Materials Lgt. Treads | 38% | -10/Materials Remote Shield | 10% | -9/Materials Cld. VTOL Module | 73% | -7/Factory Cld. VTOL Module | 68% | -7/Factory Lgt. Angular Momentum Engine | 25% | -6/Factory Cld. VTOL Module | 65% | -6/Factory Cld. VTOL Module | 60% | -5/Factory Rocket Array | 3% | -5/Factory Phasing Sabre | 32% | -5/Factory Hrd. Medium Armor Plating | 1% | -5/Factory Q-thruster | 50% | -5/Factory | Broken Cld. VTOL Module | 8% | -5/Factory Imp. Medium Armor Plating | 4% | -4/Factory Cld. Nuclear Pulse Thruster | 52% | -3/Research Exp. Utility Shielding | 42% | -3/Research Cld. Nuclear Pulse Thruster | 65% | -3/Research Cld. Nuclear Pulse Thruster | 67% | -3/Research Graviton Reactor | 60% | -3/Research Studied --------- Spread Laser | -9/Materials | Hacked Lgt. Treads | -9/Materials | Hacked Minigun | -8/Materials | Hacked Field Propulsion Drive | -5/Factory | Hacked Impulse Thruster Array | -2/Research | Hacked Alien Tech Used ----------------- Integrated Dissipator Achievements -------------- Doshington I Like You, Cogmind Look Less Dangerous Next Time Spot Them First We Love MA Challenges ------------ None Game ------ Seed CryofiberServoWheel Manual? 0 Play Time 03:35:01 Cumulative 778.9 hours Start 2025.10.24 @ 10:19:17 End 2025.10.24 @ 18:34:00 Sessions 7 Manual Loads 0 Difficulty Rogue Special Mode None Game No. 393 Rogue 393 Adventurer 0 Explorer 0 Win Type 0 Total 65 Types 42/4/6/4/1/1/3/2/1/1 Lore% 92 Gallery% 85 Achievement% 64 Wizard Run 0 Options --------- Layout 0 ASCII 0 Keyboard 1 Movement Numpad Keybinds 0 Fullscreen 2 Font 18/SmallcapsGlow Map View 76x50 Zoom Use 0% Tactical HUD 1 Map Filters NONE Filters NONE Steam 1 RUN: 10ad3d8b-63ab-4cc2-a8ef-015e27d8b7b6